Department family,Entity,Date,Expense type,Expense area,Supplier,Transaction number,Amount,VAT registration number
Department for Business Energy and Industrial Strategy,Intellectual Property Office,08/06/2023,Travel & Subsistence,DDaT Directorate,Personal expenses,UK000000069,567.50,Not Applicable
Department for Business Energy and Industrial Strategy,Intellectual Property Office,05/06/2023,Pay Costs,PDTM Directorate,Acorn Recruitment Ltd,1030001,778.33,Not Applicable
Department for Business Energy and Industrial Strategy,Intellectual Property Office,06/06/2023,Pay Costs,PDTM Directorate,Acorn Recruitment Ltd,1030002,732.30,Not Applicable
Department for Business Energy and Industrial Strategy,Intellectual Property Office,09/06/2023,Pay Costs,PDTM Directorate,Acorn Recruitment Ltd,1030472,778.33,Not Applicable
Department for Business Energy and Industrial Strategy,Intellectual Property Office,09/06/2023,Pay Costs,PDTM Directorate,Acorn Recruitment Ltd,1030473,763.24,Not Applicable
Department for Business Energy and Industrial Strategy,Intellectual Property Office,15/06/2023,Pay Costs,PDTM Directorate,Acorn Recruitment Ltd,1030955,631.08,Not Applicable
Department for Business Energy and Industrial Strategy,Intellectual Property Office,22/06/2023,Pay Costs,PDTM Directorate,Acorn Recruitment Ltd,1031425,778.33,Not Applicable
Department for Business Energy and Industrial Strategy,Intellectual Property Office,22/06/2023,Pay Costs,PDTM Directorate,Acorn Recruitment Ltd,1031426,505.39,Not Applicable
Department for Business Energy and Industrial Strategy,Intellectual Property Office,05/06/2023,Office Supplies,"Rights, Policy & Enforcement Directorate",Banner Group Limited,9679390A,"2,373.61",Not Applicable
Department for Business Energy and Industrial Strategy,Intellectual Property Office,27/06/2023,Telecoms,DDaT Directorate,British  Telecom,VP02239170-JUN23,"1,371.97",Not Applicable
Department for Business Energy and Industrial Strategy,Intellectual Property Office,01/06/2023,Telecoms,DDaT Directorate,British  Telecom,VP02239170-MAY23,"1,371.18",Not Applicable
Department for Business Energy and Industrial Strategy,Intellectual Property Office,09/06/2023,Office Supplies,PDTM Directorate,British Library,7000425268,"1,936.88",Not Applicable
Department for Business Energy and Industrial Strategy,Intellectual Property Office,14/06/2023,Miscellaneous Expenses General,"Rights, Policy & Enforcement Directorate",British Standards Institution BSI,96275040,"7,168.80",Not Applicable
Department for Business Energy and Industrial Strategy,Intellectual Property Office,15/06/2023,Miscellaneous Expenses General,DDaT Directorate,British Standards Institution BSI,96288628,"3,820.80",Not Applicable
Department for Business Energy and Industrial Strategy,Intellectual Property Office,26/06/2023,Miscellaneous Expenses General,PDTM Directorate,British Standards Institution BSI,96309796,"2,851.20",Not Applicable
Department for Business Energy and Industrial Strategy,Intellectual Property Office,21/06/2023,Miscellaneous Expenses General,Strategy Directorate,"Burns Owens Partnership Ltd, t/a BOP Con",INV-23/3472,"32,280.00",Not Applicable
Department for Business Energy and Industrial Strategy,Intellectual Property Office,12/06/2023,Staff Costs,"Rights, Policy & Enforcement Directorate",Cabinet Office,3830576,"15,566.64",Not Applicable
Department for Business Energy and Industrial Strategy,Intellectual Property Office,21/06/2023,Information Technology,DDaT Directorate,Cabinet Office,3830685,"55,080.00",Not Applicable
Department for Business Energy and Industrial Strategy,Intellectual Property Office,21/06/2023,Information Technology,DDaT Directorate,Cabinet Office,3830696,"117,576.00",Not Applicable
Department for Business Energy and Industrial Strategy,Intellectual Property Office,05/06/2023,Postage & Delivery Costs,"Rights, Policy & Enforcement Directorate",DHL International (UK) Ltd,BRSR007186316,660.71,Not Applicable
Department for Business Energy and Industrial Strategy,Intellectual Property Office,07/06/2023,Postage & Delivery Costs,"Rights, Policy & Enforcement Directorate",DHL International (UK) Ltd,BRSR007205680,"1,457.98",Not Applicable
Department for Business Energy and Industrial Strategy,Intellectual Property Office,15/06/2023,Postage & Delivery Costs,"Rights, Policy & Enforcement Directorate",DHL International (UK) Ltd,BRSR007223192,"1,766.93",Not Applicable
Department for Business Energy and Industrial Strategy,Intellectual Property Office,22/06/2023,Postage & Delivery Costs,"Rights, Policy & Enforcement Directorate",DHL International (UK) Ltd,BRSR007245717,"1,473.08",Not Applicable
Department for Business Energy and Industrial Strategy,Intellectual Property Office,28/06/2023,Postage & Delivery Costs,"Rights, Policy & Enforcement Directorate",DHL International (UK) Ltd,BRSR007268201,"5,310.90",Not Applicable
Department for Business Energy and Industrial Strategy,Intellectual Property Office,27/06/2023,Accommodation,"Rights, Policy & Enforcement Directorate",Pro Investments Limited,194925,"24,750.00",Not Applicable
Department for Business Energy and Industrial Strategy,Intellectual Property Office,27/06/2023,Accommodation,"Rights, Policy & Enforcement Directorate",Pro Investments Limited,194926,"2,246.18",Not Applicable
Department for Business Energy and Industrial Strategy,Intellectual Property Office,05/06/2023,Accommodation,"Rights, Policy & Enforcement Directorate",Pro Investments Limited,195150,"4,200.00",Not Applicable
Department for Business Energy and Industrial Strategy,Intellectual Property Office,09/06/2023,Pay Costs,DDaT Directorate,Hays Specialist Recruitment,1013007342,"4,485.54",Not Applicable
Department for Business Energy and Industrial Strategy,Intellectual Property Office,19/06/2023,Pay Costs,DDaT Directorate,Hays Specialist Recruitment,1013024568,"5,382.65",Not Applicable
Department for Business Energy and Industrial Strategy,Intellectual Property Office,19/06/2023,Pay Costs,DDaT Directorate,Hays Specialist Recruitment,1013024569,"4,485.54",Not Applicable
Department for Business Energy and Industrial Strategy,Intellectual Property Office,23/06/2023,Pay Costs,DDaT Directorate,Hays Specialist Recruitment,1013034868,"4,485.54",Not Applicable
Department for Business Energy and Industrial Strategy,Intellectual Property Office,15/06/2023,Supporting UK Business,PDTM Directorate,IP Pragmatics,3194,"4,860.00",Not Applicable
Department for Business Energy and Industrial Strategy,Intellectual Property Office,27/06/2023,Travel & Subsistence,PDTM Directorate,Zenith,13628,-757.45,Not Applicable
Department for Business Energy and Industrial Strategy,Intellectual Property Office,27/06/2023,Travel & Subsistence,PDTM Directorate,Zenith,329618,756.41,Not Applicable
Department for Business Energy and Industrial Strategy,Intellectual Property Office,09/06/2023,Legal & Hearings,PDTM Directorate,Marten Walsh Cherer Ltd,127564,672.00,Not Applicable
Department for Business Energy and Industrial Strategy,Intellectual Property Office,27/06/2023,Legal & Hearings,PDTM Directorate,Marten Walsh Cherer Ltd,128033,"2,099.75",Not Applicable
Department for Business Energy and Industrial Strategy,Intellectual Property Office,05/06/2023,Information Technology,DDaT Directorate,Phoenix Software Ltd,OP/I970920,"124,125.35",Not Applicable
Department for Business Energy and Industrial Strategy,Intellectual Property Office,21/06/2023,Information Technology,DDaT Directorate,Phoenix Software Ltd,OP/I972370,"135,191.83",Not Applicable
Department for Business Energy and Industrial Strategy,Intellectual Property Office,15/06/2023,Supporting UK Business,PDTM Directorate,Potter Clarkson LLP,1027253,"4,800.00",Not Applicable
Department for Business Energy and Industrial Strategy,Intellectual Property Office,23/06/2023,Information Technology,DDaT Directorate,Red Gate Software Limited,INV00134894,"1,692.83",Not Applicable
Department for Business Energy and Industrial Strategy,Intellectual Property Office,07/06/2023,Postage & Delivery Costs,"Rights, Policy & Enforcement Directorate",Royal Mail,9067610972,"2,856.73",Not Applicable
Department for Business Energy and Industrial Strategy,Intellectual Property Office,15/06/2023,Postage & Delivery Costs,"Rights, Policy & Enforcement Directorate",Royal Mail,9067668047,"1,998.59",Not Applicable
Department for Business Energy and Industrial Strategy,Intellectual Property Office,19/06/2023,Postage & Delivery Costs,"Rights, Policy & Enforcement Directorate",Royal Mail,9067720314,"2,977.29",Not Applicable
Department for Business Energy and Industrial Strategy,Intellectual Property Office,22/06/2023,Postage & Delivery Costs,"Rights, Policy & Enforcement Directorate",Royal Mail,9067774791,"2,596.52",Not Applicable
Department for Business Energy and Industrial Strategy,Intellectual Property Office,28/06/2023,Postage & Delivery Costs,"Rights, Policy & Enforcement Directorate",Royal Mail,9067827830,"3,358.97",Not Applicable
Department for Business Energy and Industrial Strategy,Intellectual Property Office,21/06/2023,Accommodation,"Rights, Policy & Enforcement Directorate",Senator International Ltd,S01805898,"1,076.44",Not Applicable
Department for Business Energy and Industrial Strategy,Intellectual Property Office,01/06/2023,Information Technology,DDaT Directorate,Specialist Computer Centres Plc,OP/N381922,"12,345.14",Not Applicable
Department for Business Energy and Industrial Strategy,Intellectual Property Office,27/06/2023,Information Technology,DDaT Directorate,Specialist Computer Centres Plc,OP/N398202,"12,345.14",Not Applicable
Department for Business Energy and Industrial Strategy,Intellectual Property Office,27/06/2023,Information Technology,DDaT Directorate,Specialist Computer Centres Plc,OP/N398203,"11,463.34",Not Applicable
Department for Business Energy and Industrial Strategy,Intellectual Property Office,30/06/2023,Information Technology,DDaT Directorate,Specialist Computer Centres Plc,OP/N400453,"83,361.48",Not Applicable
Department for Business Energy and Industrial Strategy,Intellectual Property Office,21/06/2023,Accommodation,"Rights, Policy & Enforcement Directorate",Total Security Protection Ltd,206974,"1,096.80",Not Applicable
Department for Business Energy and Industrial Strategy,Intellectual Property Office,01/06/2023,Accommodation,"Rights, Policy & Enforcement Directorate",Total Security Protection Ltd,44069,"1,208.63",Not Applicable
Department for Business Energy and Industrial Strategy,Intellectual Property Office,16/06/2023,Staff Costs,Strategy Directorate,University of Glasgow,64083,"1,111.00",Not Applicable
Department for Business Energy and Industrial Strategy,Intellectual Property Office,15/06/2023,Staff Costs,Strategy Directorate,University of Glasgow,66235,"2,222.00",Not Applicable
Department for Business Energy and Industrial Strategy,Intellectual Property Office,15/06/2023,Accommodation,"Rights, Policy & Enforcement Directorate",Wastesavers Ltd,22128,535.91,Not Applicable
Department for Business Energy and Industrial Strategy,Intellectual Property Office,01/06/2023,Supporting UK Business,PDTM Directorate,Withers &  Rogers LLP,6867231,"2,500.00",Not Applicable
Department for Business Energy and Industrial Strategy,Intellectual Property Office,13/06/2023,Supporting UK Business,PDTM Directorate,Lincoln IP,16402,"2,500.00",Not Applicable
Department for Business Energy and Industrial Strategy,Intellectual Property Office,22/06/2023,Supporting UK Business,PDTM Directorate,Lincoln IP,16478,"5,000.00",Not Applicable
Department for Business Energy and Industrial Strategy,Intellectual Property Office,02/06/2023,Supporting UK Business,PDTM Directorate,Marks & Clerk LLP,5315103,"2,500.00",Not Applicable
Department for Business Energy and Industrial Strategy,Intellectual Property Office,22/06/2023,Supporting UK Business,PDTM Directorate,Marks & Clerk LLP,5317834,"5,000.00",Not Applicable
Department for Business Energy and Industrial Strategy,Intellectual Property Office,21/06/2023,Supporting UK Business,PDTM Directorate,Mewburn  Ellis LLP,275310,"2,500.00",Not Applicable
Department for Business Energy and Industrial Strategy,Intellectual Property Office,15/06/2023,Supporting UK Business,PDTM Directorate,Mewburn  Ellis LLP,278567,"5,000.00",Not Applicable
Department for Business Energy and Industrial Strategy,Intellectual Property Office,16/06/2023,Supporting UK Business,PDTM Directorate,Mewburn  Ellis LLP,278580,"5,000.00",Not Applicable
Department for Business Energy and Industrial Strategy,Intellectual Property Office,15/06/2023,Supporting UK Business,Business & International Policy Directorate,Foreign & Commonwealth and Development O,20006945,"69,953.69",Not Applicable
Department for Business Energy and Industrial Strategy,Intellectual Property Office,16/06/2023,Supporting UK Business,Business & International Policy Directorate,Foreign & Commonwealth and Development O,20007134,"10,240.90",Not Applicable
Department for Business Energy and Industrial Strategy,Intellectual Property Office,16/06/2023,Supporting UK Business,Business & International Policy Directorate,Foreign & Commonwealth and Development O,20007144,-583.88,Not Applicable
Department for Business Energy and Industrial Strategy,Intellectual Property Office,23/06/2023,Supporting UK Business,Business & International Policy Directorate,Foreign & Commonwealth and Development O,20007315,"33,027.93",Not Applicable
Department for Business Energy and Industrial Strategy,Intellectual Property Office,14/06/2023,Information Technology,DDaT Directorate,HORNBILL SERVICE MANAGEMENT LIMITE,INV18132,"3,600.00",Not Applicable
Department for Business Energy and Industrial Strategy,Intellectual Property Office,15/06/2023,Accommodation,"Rights, Policy & Enforcement Directorate",RICO LOGISTICS LTD,SINRLLFS00424364,859.33,Not Applicable
Department for Business Energy and Industrial Strategy,Intellectual Property Office,22/06/2023,Postage & Delivery Costs,"Rights, Policy & Enforcement Directorate",RICO LOGISTICS LTD,SINRLLFS00425051,"1,317.92",Not Applicable
Department for Business Energy and Industrial Strategy,Intellectual Property Office,28/06/2023,Postage & Delivery Costs,"Rights, Policy & Enforcement Directorate",RICO LOGISTICS LTD,SINRLLFS00426056,696.00,Not Applicable
Department for Business Energy and Industrial Strategy,Intellectual Property Office,06/06/2023,Telecoms,DDaT Directorate,VIRGIN MEDIA,917218-JUNE23,589.82,Not Applicable
Department for Business Energy and Industrial Strategy,Intellectual Property Office,09/06/2023,Information Technology,DDaT Directorate,Open Connections Solutions Limited,340095,518.40,Not Applicable
Department for Business Energy and Industrial Strategy,Intellectual Property Office,09/06/2023,Supporting UK Business,PDTM Directorate,LAWRIE INTELLECTUAL PROPERTY,125864,"3,768.00",Not Applicable
Department for Business Energy and Industrial Strategy,Intellectual Property Office,16/06/2023,Supporting UK Business,PDTM Directorate,LAWRIE INTELLECTUAL PROPERTY,126146,"5,000.00",Not Applicable
Department for Business Energy and Industrial Strategy,Intellectual Property Office,06/06/2023,Supporting UK Business,Business & International Policy Directorate,INNGOT LTD,U23-5-6,"3,660.00",Not Applicable
Department for Business Energy and Industrial Strategy,Intellectual Property Office,07/06/2023,Supporting UK Business,PDTM Directorate,INNGOT LTD,U23-5-7,"2,500.00",Not Applicable
Department for Business Energy and Industrial Strategy,Intellectual Property Office,14/06/2023,Supporting UK Business,Business & International Policy Directorate,INNGOT LTD,U23-6/3,"7,200.00",Not Applicable
Department for Business Energy and Industrial Strategy,Intellectual Property Office,20/06/2023,Supporting UK Business,Business & International Policy Directorate,INNGOT LTD,U23-6/5,"3,050.00",Not Applicable
Department for Business Energy and Industrial Strategy,Intellectual Property Office,21/06/2023,Pay Costs,Finance Directorate,Accountancy Recruitment Wales Ltd,999913,"1,268.06",Not Applicable
Department for Business Energy and Industrial Strategy,Intellectual Property Office,13/06/2023,Pay Costs,Finance Directorate,Accountancy Recruitment Wales Ltd,999914,"1,268.06",Not Applicable
Department for Business Energy and Industrial Strategy,Intellectual Property Office,02/06/2023,Pay Costs,Finance Directorate,Accountancy Recruitment Wales Ltd,999923,"1,268.06",Not Applicable
Department for Business Energy and Industrial Strategy,Intellectual Property Office,14/06/2023,Pay Costs,Finance Directorate,Accountancy Recruitment Wales Ltd,999924,"1,028.16",Not Applicable
Department for Business Energy and Industrial Strategy,Intellectual Property Office,22/06/2023,Pay Costs,Finance Directorate,Accountancy Recruitment Wales Ltd,999925,"1,268.06",Not Applicable
Department for Business Energy and Industrial Strategy,Intellectual Property Office,28/06/2023,Pay Costs,Finance Directorate,Accountancy Recruitment Wales Ltd,999926,"1,268.06",Not Applicable
Department for Business Energy and Industrial Strategy,Intellectual Property Office,06/06/2023,Information Technology,DDaT Directorate,Experian Ltd,HEX67000775570,"36,000.00",Not Applicable
Department for Business Energy and Industrial Strategy,Intellectual Property Office,16/06/2023,Accommodation,"Rights, Policy & Enforcement Directorate",EDF ENERGY,15584032,"36,060.99",Not Applicable
Department for Business Energy and Industrial Strategy,Intellectual Property Office,13/06/2023,Accommodation,"Rights, Policy & Enforcement Directorate",EDF ENERGY,15593599,"1,771.22",Not Applicable
Department for Business Energy and Industrial Strategy,Intellectual Property Office,30/06/2023,Supporting UK Business,"Rights, Policy & Enforcement Directorate",DAN ANTHONY PRESENTATIONS LTD,243,"1,500.00",Not Applicable
Department for Business Energy and Industrial Strategy,Intellectual Property Office,13/06/2023,Miscellaneous Expenses General,"Rights, Policy & Enforcement Directorate",Thomas Carroll Management Services Ltd,523681747,558.00,Not Applicable
Department for Business Energy and Industrial Strategy,Intellectual Property Office,26/06/2023,Pay Costs,"Rights, Policy & Enforcement Directorate",Police & Crime Commissioner Sussex,1800051786,"5,069.00",Not Applicable
Department for Business Energy and Industrial Strategy,Intellectual Property Office,27/06/2023,Staff Costs,PDTM Directorate,University of Bath,94729,"9,350.00",Not Applicable
Department for Business Energy and Industrial Strategy,Intellectual Property Office,15/06/2023,Staff Costs,"Rights, Policy & Enforcement Directorate",Sodexo Motivation Solutions UK Ltd,3877015,"2,381.74",Not Applicable
Department for Business Energy and Industrial Strategy,Intellectual Property Office,23/06/2023,Telecoms,DDaT Directorate,EE Ltd,1287905752,806.28,Not Applicable
Department for Business Energy and Industrial Strategy,Intellectual Property Office,09/06/2023,Legal & Hearings,PDTM Directorate,Government Legal Department,520678,"8,873.52",Not Applicable
Department for Business Energy and Industrial Strategy,Intellectual Property Office,28/06/2023,Legal & Hearings,PDTM Directorate,Government Legal Department,526722,"21,426.36",Not Applicable
Department for Business Energy and Industrial Strategy,Intellectual Property Office,23/06/2023,Legal & Hearings,PDTM Directorate,Government Legal Department,528765,"15,564.00",Not Applicable
Department for Business Energy and Industrial Strategy,Intellectual Property Office,23/06/2023,Legal & Hearings,PDTM Directorate,Government Legal Department,529594,"3,117.60",Not Applicable
Department for Business Energy and Industrial Strategy,Intellectual Property Office,26/06/2023,Legal & Hearings,PDTM Directorate,Government Legal Department,529658,"3,999.72",Not Applicable
Department for Business Energy and Industrial Strategy,Intellectual Property Office,30/06/2023,Supporting UK Business,PDTM Directorate,MacRoberts LLP,240164,"5,000.00",Not Applicable
Department for Business Energy and Industrial Strategy,Intellectual Property Office,15/06/2023,Miscellaneous Expenses General,PDTM Directorate,FCDO Services,70005926,525.00,Not Applicable
Department for Business Energy and Industrial Strategy,Intellectual Property Office,01/06/2023,Supporting UK Business,PDTM Directorate,Murgitroyd & Company Ltd,043684-23,"2,500.00",Not Applicable
Department for Business Energy and Industrial Strategy,Intellectual Property Office,09/06/2023,Supporting UK Business,PDTM Directorate,Murgitroyd & Company Ltd,049697A-23,"2,500.00",Not Applicable
Department for Business Energy and Industrial Strategy,Intellectual Property Office,13/06/2023,Supporting UK Business,PDTM Directorate,Murgitroyd & Company Ltd,050424-23,"2,500.00",Not Applicable
Department for Business Energy and Industrial Strategy,Intellectual Property Office,30/06/2023,Supporting UK Business,PDTM Directorate,Murgitroyd & Company Ltd,053682-23,"2,500.00",Not Applicable
Department for Business Energy and Industrial Strategy,Intellectual Property Office,30/06/2023,Staff Costs,"Rights, Policy & Enforcement Directorate",The Clive Davis Partnership Ltd.,CDSC/3773,"1,200.00",Not Applicable
Department for Business Energy and Industrial Strategy,Intellectual Property Office,30/06/2023,Information Technology,Strategy Directorate,Bureau Van Dijk Electronic Publish,ZGB3006297,"-42,404.10",Not Applicable
Department for Business Energy and Industrial Strategy,Intellectual Property Office,30/06/2023,Information Technology,Strategy Directorate,Bureau Van Dijk Electronic Publish,ZGB3007038,"42,404.10",Not Applicable
Department for Business Energy and Industrial Strategy,Intellectual Property Office,13/06/2023,Miscellaneous Expenses General,PDTM Directorate,European Patent Office,40310690,"38,651.92",Not Applicable
Department for Business Energy and Industrial Strategy,Intellectual Property Office,30/06/2023,Information Technology,PDTM Directorate,European Patent Office,40310740,"125,311.63",Not Applicable
Department for Business Energy and Industrial Strategy,Intellectual Property Office,20/06/2023,Office Supplies,"Rights, Policy & Enforcement Directorate",Insight Health Screening Limited,SIN-01531,958.80,Not Applicable
Department for Business Energy and Industrial Strategy,Intellectual Property Office,13/06/2023,Miscellaneous Expenses General,"Rights, Policy & Enforcement Directorate",Insight Health Screening Limited,SIN-01693,"3,732.00",Not Applicable
Department for Business Energy and Industrial Strategy,Intellectual Property Office,02/06/2023,Miscellaneous Expenses General,"Rights, Policy & Enforcement Directorate",Acorns Action Pak,17328,"1,185.00",Not Applicable
Department for Business Energy and Industrial Strategy,Intellectual Property Office,13/06/2023,Miscellaneous Expenses General,Business & International Policy Directorate,Intercontinental,10.07.2023 IPO,"1,649.68",Not Applicable
Department for Business Energy and Industrial Strategy,Intellectual Property Office,26/06/2023,Supporting UK Business,PDTM Directorate,Scintilla,INV-03854,"2,500.00",Not Applicable
Department for Business Energy and Industrial Strategy,Intellectual Property Office,15/06/2023,Supporting UK Business,PDTM Directorate,Scintilla,INV-03883,"5,000.00",Not Applicable
Department for Business Energy and Industrial Strategy,Intellectual Property Office,09/06/2023,Supporting UK Business,PDTM Directorate,Scintilla,INV-03888,"5,000.00",Not Applicable
Department for Business Energy and Industrial Strategy,Intellectual Property Office,13/06/2023,Supporting UK Business,PDTM Directorate,Scintilla,INV-03891,"2,500.00",Not Applicable
Department for Business Energy and Industrial Strategy,Intellectual Property Office,15/06/2023,Supporting UK Business,PDTM Directorate,Forresters clear direction,KBO-5884357,"1,020.00",Not Applicable
Department for Business Energy and Industrial Strategy,Intellectual Property Office,15/06/2023,Supporting UK Business,PDTM Directorate,Forresters clear direction,KBO-5884358,"1,020.00",Not Applicable
Department for Business Energy and Industrial Strategy,Intellectual Property Office,15/06/2023,Supporting UK Business,PDTM Directorate,Forresters clear direction,KBO-5885508,"1,458.00",Not Applicable
Department for Business Energy and Industrial Strategy,Intellectual Property Office,01/06/2023,Marketing & Publicity,PDTM Directorate,Upper Street Events t/a Immediate Live,100584,"3,718.80",Not Applicable
Department for Business Energy and Industrial Strategy,Intellectual Property Office,05/06/2023,Information Technology,Projects,People for Research Ltd,12874,"3,104.00",Not Applicable
Department for Business Energy and Industrial Strategy,Intellectual Property Office,09/06/2023,Information Technology,Projects,People for Research Ltd,12881,"2,577.60",Not Applicable
Department for Business Energy and Industrial Strategy,Intellectual Property Office,07/06/2023,Miscellaneous Expenses General,"Rights, Policy & Enforcement Directorate",Health Assured Ltd,SF-157581,"3,264.10",Not Applicable
Department for Business Energy and Industrial Strategy,Intellectual Property Office,26/06/2023,Supporting UK Business,PDTM Directorate,Wynne-Jones Laine and James LLP,2020269,"2,500.00",Not Applicable
Department for Business Energy and Industrial Strategy,Intellectual Property Office,07/06/2023,Supporting UK Business,PDTM Directorate,Albright ip,158345,"2,500.00",Not Applicable
Department for Business Energy and Industrial Strategy,Intellectual Property Office,01/06/2023,Supporting UK Business,PDTM Directorate,Albright ip,158380,"2,500.00",Not Applicable
Department for Business Energy and Industrial Strategy,Intellectual Property Office,09/06/2023,Supporting UK Business,PDTM Directorate,Ellis IP Limited,5047,"2,500.00",Not Applicable
Department for Business Energy and Industrial Strategy,Intellectual Property Office,22/06/2023,Supporting UK Business,PDTM Directorate,Ellis IP Limited,5051,"5,000.00",Not Applicable
Department for Business Energy and Industrial Strategy,Intellectual Property Office,29/06/2023,Information Technology,"Rights, Policy & Enforcement Directorate",Tameside Borough Council,69485365,"1,700.00",Not Applicable
Department for Business Energy and Industrial Strategy,Intellectual Property Office,02/06/2023,Staff Costs,DDaT Directorate,KPMG LLP (CSL),5502633846,985.20,Not Applicable
Department for Business Energy and Industrial Strategy,Intellectual Property Office,21/06/2023,Staff Costs,PDTM Directorate,KPMG LLP (CSL),5502644743,"1,920.00",Not Applicable
Department for Business Energy and Industrial Strategy,Intellectual Property Office,09/06/2023,Supporting UK Business,PDTM Directorate,Temple Bright LLP,39807,"4,996.80",Not Applicable
Department for Business Energy and Industrial Strategy,Intellectual Property Office,07/06/2023,Supporting UK Business,PDTM Directorate,Astrum ElementOne Limited,S8468,"2,500.00",Not Applicable
Department for Business Energy and Industrial Strategy,Intellectual Property Office,02/06/2023,Staff Costs,DDaT Directorate,TeckChek Europe Ltd,230521,"3,600.00",Not Applicable
Department for Business Energy and Industrial Strategy,Intellectual Property Office,09/06/2023,Information Technology,DDaT Directorate,Equal Experts UK Ltd,INV-12625,"15,000.00",Not Applicable
Department for Business Energy and Industrial Strategy,Intellectual Property Office,23/06/2023,Staff Costs,"Rights, Policy & Enforcement Directorate",Linkedln Ireland,78111684302,"2,320.00",Not Applicable
Department for Business Energy and Industrial Strategy,Intellectual Property Office,06/06/2023,Information Technology,PDTM Directorate,Clarivate Analytics (UK) Limited,2007INV00065899,"163,801.18",Not Applicable
Department for Business Energy and Industrial Strategy,Intellectual Property Office,16/06/2023,Supporting UK Business,PDTM Directorate,Mathys & Squire IP,475664,780.00,Not Applicable
Department for Business Energy and Industrial Strategy,Intellectual Property Office,16/06/2023,Supporting UK Business,PDTM Directorate,Mathys & Squire IP,477946,936.00,Not Applicable
Department for Business Energy and Industrial Strategy,Intellectual Property Office,16/06/2023,Supporting UK Business,PDTM Directorate,Mathys & Squire IP,478142,"5,000.00",Not Applicable
Department for Business Energy and Industrial Strategy,Intellectual Property Office,30/06/2023,Supporting UK Business,PDTM Directorate,Mathys & Squire IP,478527,"5,000.00",Not Applicable
Department for Business Energy and Industrial Strategy,Intellectual Property Office,30/06/2023,Supporting UK Business,PDTM Directorate,Mathys & Squire IP,478540,534.00,Not Applicable
Department for Business Energy and Industrial Strategy,Intellectual Property Office,08/06/2023,Staff Costs,"Rights, Policy & Enforcement Directorate",INVESTORS IN PEOPLE COMMUNITY INT,INVOICENOPSI1219,"4,320.00",Not Applicable
Department for Business Energy and Industrial Strategy,Intellectual Property Office,29/06/2023,Miscellaneous Expenses General,PDTM Directorate,Vinci Construction UK Ltd,23060379,294.42,Not Applicable
Department for Business Energy and Industrial Strategy,Intellectual Property Office,29/06/2023,Miscellaneous Expenses General,Strategy Directorate,Vinci Construction UK Ltd,23060379,166.08,Not Applicable
Department for Business Energy and Industrial Strategy,Intellectual Property Office,29/06/2023,Miscellaneous Expenses General,"Rights, Policy & Enforcement Directorate",Vinci Construction UK Ltd,23060379,52.98,Not Applicable
Department for Business Energy and Industrial Strategy,Intellectual Property Office,29/06/2023,Miscellaneous Expenses General,Strategy Directorate,Vinci Construction UK Ltd,23060379,166.08,Not Applicable
Department for Business Energy and Industrial Strategy,Intellectual Property Office,29/06/2023,Miscellaneous Expenses General,PDTM Directorate,Vinci Construction UK Ltd,23060379,144.72,Not Applicable
Department for Business Energy and Industrial Strategy,Intellectual Property Office,29/06/2023,Miscellaneous Expenses General,PDTM Directorate,Vinci Construction UK Ltd,23060379,128.88,Not Applicable
Department for Business Energy and Industrial Strategy,Intellectual Property Office,29/06/2023,Miscellaneous Expenses General,"Rights, Policy & Enforcement Directorate",Vinci Construction UK Ltd,23060379,266.58,Not Applicable
Department for Business Energy and Industrial Strategy,Intellectual Property Office,29/06/2023,Miscellaneous Expenses General,"Rights, Policy & Enforcement Directorate",Vinci Construction UK Ltd,23060379,957.48,Not Applicable
Department for Business Energy and Industrial Strategy,Intellectual Property Office,29/06/2023,Miscellaneous Expenses General,Strategy Directorate,Vinci Construction UK Ltd,23060379,175.74,Not Applicable
Department for Business Energy and Industrial Strategy,Intellectual Property Office,29/06/2023,Miscellaneous Expenses General,"Rights, Policy & Enforcement Directorate",Vinci Construction UK Ltd,23060379,218.40,Not Applicable
Department for Business Energy and Industrial Strategy,Intellectual Property Office,29/06/2023,Miscellaneous Expenses General,"Rights, Policy & Enforcement Directorate",Vinci Construction UK Ltd,23060379,145.92,Not Applicable
Department for Business Energy and Industrial Strategy,Intellectual Property Office,29/06/2023,Miscellaneous Expenses General,"Rights, Policy & Enforcement Directorate",Vinci Construction UK Ltd,23060379,23.40,Not Applicable
Department for Business Energy and Industrial Strategy,Intellectual Property Office,22/06/2023,Supporting UK Business,PDTM Directorate,Gill Jennings & Every LLP,447232,"5,000.00",Not Applicable
Department for Business Energy and Industrial Strategy,Intellectual Property Office,30/06/2023,Supporting UK Business,PDTM Directorate,Gill Jennings & Every LLP,447421,"2,500.00",Not Applicable
Department for Business Energy and Industrial Strategy,Intellectual Property Office,07/06/2023,Supporting UK Business,PDTM Directorate,Archer-IP,14037,"2,500.00",Not Applicable
Department for Business Energy and Industrial Strategy,Intellectual Property Office,21/06/2023,Information Technology,DDaT Directorate,8X8 Solutions,3912958,"2,763.25",Not Applicable
Department for Business Energy and Industrial Strategy,Intellectual Property Office,09/06/2023,Supporting UK Business,PDTM Directorate,HGF Limited,741928,"2,500.00",Not Applicable
Department for Business Energy and Industrial Strategy,Intellectual Property Office,01/06/2023,Supporting UK Business,PDTM Directorate,HGF Limited,743699,"2,500.00",Not Applicable
Department for Business Energy and Industrial Strategy,Intellectual Property Office,07/06/2023,Supporting UK Business,PDTM Directorate,HGF Limited,744535,"2,500.00",Not Applicable
Department for Business Energy and Industrial Strategy,Intellectual Property Office,09/06/2023,Supporting UK Business,PDTM Directorate,HGF Limited,744595,"5,000.00",Not Applicable
Department for Business Energy and Industrial Strategy,Intellectual Property Office,09/06/2023,Supporting UK Business,PDTM Directorate,HGF Limited,744634,"2,500.00",Not Applicable
Department for Business Energy and Industrial Strategy,Intellectual Property Office,07/06/2023,Supporting UK Business,PDTM Directorate,HGF Limited,745310,"2,500.00",Not Applicable
Department for Business Energy and Industrial Strategy,Intellectual Property Office,16/06/2023,Supporting UK Business,PDTM Directorate,HGF Limited,748114,"5,000.00",Not Applicable
Department for Business Energy and Industrial Strategy,Intellectual Property Office,09/06/2023,Supporting UK Business,PDTM Directorate,The IP Asset Partnership Ltd,2305035,"5,000.00",Not Applicable
Department for Business Energy and Industrial Strategy,Intellectual Property Office,26/06/2023,Supporting UK Business,PDTM Directorate,Slingsby Partners LLP,MI22-01216,"2,500.00",Not Applicable
Department for Business Energy and Industrial Strategy,Intellectual Property Office,15/06/2023,Supporting UK Business,PDTM Directorate,Sweetinburgh & Windsor Ltd,7981,"5,000.00",Not Applicable
Department for Business Energy and Industrial Strategy,Intellectual Property Office,16/06/2023,Supporting UK Business,PDTM Directorate,Definition IP Ltd,INV-003493,"3,900.00",Not Applicable
Department for Business Energy and Industrial Strategy,Intellectual Property Office,09/06/2023,Supporting UK Business,PDTM Directorate,Symbiosis IP Ltd,8180-23,"2,500.00",Not Applicable
Department for Business Energy and Industrial Strategy,Intellectual Property Office,21/06/2023,Staff Costs,"Rights, Policy & Enforcement Directorate",Bethan Roberts,822-2023,"1,971.60",Not Applicable
Department for Business Energy and Industrial Strategy,Intellectual Property Office,23/06/2023,Staff Costs,"Rights, Policy & Enforcement Directorate",People Untapped Limited,INV-2178,"1,380.00",Not Applicable
Department for Business Energy and Industrial Strategy,Intellectual Property Office,27/06/2023,Staff Costs,"Rights, Policy & Enforcement Directorate",People Untapped Limited,INV-2180,"12,420.00",Not Applicable
Department for Business Energy and Industrial Strategy,Intellectual Property Office,15/06/2023,Supporting UK Business,PDTM Directorate,Barker Brettell LLP,479666,"5,000.00",Not Applicable
Department for Business Energy and Industrial Strategy,Intellectual Property Office,13/06/2023,Accommodation,PDTM Directorate,The International Dispute Resoluti,32096,"2,340.00",Not Applicable
Department for Business Energy and Industrial Strategy,Intellectual Property Office,28/06/2023,Supporting UK Business,"Rights, Policy & Enforcement Directorate",Manchester City Council,8500714727,"7,200.00",Not Applicable
Department for Business Energy and Industrial Strategy,Intellectual Property Office,27/06/2023,Staff Costs,"Rights, Policy & Enforcement Directorate",Tracy Mountain,92,"1,800.00",Not Applicable
Department for Business Energy and Industrial Strategy,Intellectual Property Office,13/06/2023,Other FA at Cost,Projects,Deloitte LLP,8003679808,"145,800.00",Not Applicable
Department for Business Energy and Industrial Strategy,Intellectual Property Office,13/06/2023,Information Technology,Projects,Deloitte LLP,8003679809,"165,050.40",Not Applicable
Department for Business Energy and Industrial Strategy,Intellectual Property Office,13/06/2023,Other FA at Cost,Projects,Deloitte LLP,8003679810,"79,555.20",Not Applicable
Department for Business Energy and Industrial Strategy,Intellectual Property Office,15/06/2023,Other FA at Cost,Projects,Deloitte LLP,8003679811,"187,245.60",Not Applicable
Department for Business Energy and Industrial Strategy,Intellectual Property Office,21/06/2023,Other FA at Cost,Projects,Deloitte LLP,8003679819,"11,784.16",Not Applicable
Department for Business Energy and Industrial Strategy,Intellectual Property Office,15/06/2023,Other FA at Cost,Projects,Deloitte LLP,8003689916,"-187,245.60",Not Applicable
Department for Business Energy and Industrial Strategy,Intellectual Property Office,15/06/2023,Information Technology,DDaT Directorate,Deloitte LLP,8003690001,"145,635.60",Not Applicable
Department for Business Energy and Industrial Strategy,Intellectual Property Office,07/06/2023,Supporting UK Business,PDTM Directorate,Sirius IP,052023IAUH201,"2,500.00",Not Applicable
Department for Business Energy and Industrial Strategy,Intellectual Property Office,21/06/2023,Supporting UK Business,PDTM Directorate,Reddie & Grose LLP,331858,"2,500.00",Not Applicable
Department for Business Energy and Industrial Strategy,Intellectual Property Office,01/06/2023,Pay Costs,PDTM Directorate,Alexander Mann Solutions Limited,2807703,597.24,Not Applicable
Department for Business Energy and Industrial Strategy,Intellectual Property Office,01/06/2023,Pay Costs,PDTM Directorate,Alexander Mann Solutions Limited,2807704,736.60,Not Applicable
Department for Business Energy and Industrial Strategy,Intellectual Property Office,01/06/2023,Pay Costs,PDTM Directorate,Alexander Mann Solutions Limited,2807705,685.98,Not Applicable
Department for Business Energy and Industrial Strategy,Intellectual Property Office,01/06/2023,Pay Costs,PDTM Directorate,Alexander Mann Solutions Limited,2807708,736.60,Not Applicable
Department for Business Energy and Industrial Strategy,Intellectual Property Office,01/06/2023,Pay Costs,PDTM Directorate,Alexander Mann Solutions Limited,2807709,736.60,Not Applicable
Department for Business Energy and Industrial Strategy,Intellectual Property Office,02/06/2023,Pay Costs,PDTM Directorate,Alexander Mann Solutions Limited,2807711,736.60,Not Applicable
Department for Business Energy and Industrial Strategy,Intellectual Property Office,01/06/2023,Pay Costs,DDaT Directorate,Alexander Mann Solutions Limited,2807712,"6,432.24",Not Applicable
Department for Business Energy and Industrial Strategy,Intellectual Property Office,01/06/2023,Pay Costs,DDaT Directorate,Alexander Mann Solutions Limited,2807713,"5,420.16",Not Applicable
Department for Business Energy and Industrial Strategy,Intellectual Property Office,01/06/2023,Pay Costs,PDTM Directorate,Alexander Mann Solutions Limited,2807716,736.60,Not Applicable
Department for Business Energy and Industrial Strategy,Intellectual Property Office,01/06/2023,Pay Costs,PDTM Directorate,Alexander Mann Solutions Limited,2807718,736.60,Not Applicable
Department for Business Energy and Industrial Strategy,Intellectual Property Office,01/06/2023,Pay Costs,PDTM Directorate,Alexander Mann Solutions Limited,2807722,655.34,Not Applicable
Department for Business Energy and Industrial Strategy,Intellectual Property Office,01/06/2023,Pay Costs,DDaT Directorate,Alexander Mann Solutions Limited,2807723,"3,695.62",Not Applicable
Department for Business Energy and Industrial Strategy,Intellectual Property Office,01/06/2023,Pay Costs,Projects,Alexander Mann Solutions Limited,2807724,"2,999.70",Not Applicable
Department for Business Energy and Industrial Strategy,Intellectual Property Office,01/06/2023,Pay Costs,DDaT Directorate,Alexander Mann Solutions Limited,2807725,"4,090.44",Not Applicable
Department for Business Energy and Industrial Strategy,Intellectual Property Office,01/06/2023,Pay Costs,DDaT Directorate,Alexander Mann Solutions Limited,2807726,"3,024.30",Not Applicable
Department for Business Energy and Industrial Strategy,Intellectual Property Office,01/06/2023,Pay Costs,DDaT Directorate,Alexander Mann Solutions Limited,2807728,"4,095.36",Not Applicable
Department for Business Energy and Industrial Strategy,Intellectual Property Office,01/06/2023,Pay Costs,PDTM Directorate,Alexander Mann Solutions Limited,2807729,736.60,Not Applicable
Department for Business Energy and Industrial Strategy,Intellectual Property Office,01/06/2023,Pay Costs,DDaT Directorate,Alexander Mann Solutions Limited,2807730,"5,040.48",Not Applicable
Department for Business Energy and Industrial Strategy,Intellectual Property Office,01/06/2023,Pay Costs,DDaT Directorate,Alexander Mann Solutions Limited,2807731,"4,090.44",Not Applicable
Department for Business Energy and Industrial Strategy,Intellectual Property Office,01/06/2023,Pay Costs,DDaT Directorate,Alexander Mann Solutions Limited,2807732,"3,465.30",Not Applicable
Department for Business Energy and Industrial Strategy,Intellectual Property Office,01/06/2023,Pay Costs,PDTM Directorate,Alexander Mann Solutions Limited,2807733,685.98,Not Applicable
Department for Business Energy and Industrial Strategy,Intellectual Property Office,01/06/2023,Pay Costs,PDTM Directorate,Alexander Mann Solutions Limited,2807734,736.60,Not Applicable
Department for Business Energy and Industrial Strategy,Intellectual Property Office,01/06/2023,Pay Costs,PDTM Directorate,Alexander Mann Solutions Limited,2807735,736.60,Not Applicable
Department for Business Energy and Industrial Strategy,Intellectual Property Office,01/06/2023,Pay Costs,PDTM Directorate,Alexander Mann Solutions Limited,2807736,736.60,Not Applicable
Department for Business Energy and Industrial Strategy,Intellectual Property Office,01/06/2023,Pay Costs,Projects,Alexander Mann Solutions Limited,2807737,"4,410.42",Not Applicable
Department for Business Energy and Industrial Strategy,Intellectual Property Office,01/06/2023,Pay Costs,DDaT Directorate,Alexander Mann Solutions Limited,2807739,"6,930.60",Not Applicable
Department for Business Energy and Industrial Strategy,Intellectual Property Office,02/06/2023,Pay Costs,Finance Directorate,Alexander Mann Solutions Limited,2807740,"1,458.26",Not Applicable
Department for Business Energy and Industrial Strategy,Intellectual Property Office,01/06/2023,Pay Costs,DDaT Directorate,Alexander Mann Solutions Limited,2807742,"8,862.72",Not Applicable
Department for Business Energy and Industrial Strategy,Intellectual Property Office,01/06/2023,Pay Costs,PDTM Directorate,Alexander Mann Solutions Limited,2807744,587.29,Not Applicable
Department for Business Energy and Industrial Strategy,Intellectual Property Office,01/06/2023,Pay Costs,DDaT Directorate,Alexander Mann Solutions Limited,2807757,"3,465.30",Not Applicable
Department for Business Energy and Industrial Strategy,Intellectual Property Office,01/06/2023,Pay Costs,DDaT Directorate,Alexander Mann Solutions Limited,2807764,"7,655.15",Not Applicable
Department for Business Energy and Industrial Strategy,Intellectual Property Office,01/06/2023,Pay Costs,PDTM Directorate,Alexander Mann Solutions Limited,2807767,736.60,Not Applicable
Department for Business Energy and Industrial Strategy,Intellectual Property Office,01/06/2023,Pay Costs,PDTM Directorate,Alexander Mann Solutions Limited,2807767,"1,117.14",Not Applicable
Department for Business Energy and Industrial Strategy,Intellectual Property Office,01/06/2023,Pay Costs,DDaT Directorate,Alexander Mann Solutions Limited,2807774,"5,453.94",Not Applicable
Department for Business Energy and Industrial Strategy,Intellectual Property Office,06/06/2023,Pay Costs,PDTM Directorate,Alexander Mann Solutions Limited,2812762,764.20,Not Applicable
Department for Business Energy and Industrial Strategy,Intellectual Property Office,06/06/2023,Pay Costs,Projects,Alexander Mann Solutions Limited,2812763,"4,311.54",Not Applicable
Department for Business Energy and Industrial Strategy,Intellectual Property Office,06/06/2023,Pay Costs,DDaT Directorate,Alexander Mann Solutions Limited,2812764,"7,827.12",Not Applicable
Department for Business Energy and Industrial Strategy,Intellectual Property Office,06/06/2023,Pay Costs,DDaT Directorate,Alexander Mann Solutions Limited,2812765,"2,710.08",Not Applicable
Department for Business Energy and Industrial Strategy,Intellectual Property Office,06/06/2023,Pay Costs,PDTM Directorate,Alexander Mann Solutions Limited,2812766,655.34,Not Applicable
Department for Business Energy and Industrial Strategy,Intellectual Property Office,06/06/2023,Pay Costs,PDTM Directorate,Alexander Mann Solutions Limited,2812768,736.60,Not Applicable
Department for Business Energy and Industrial Strategy,Intellectual Property Office,06/06/2023,Pay Costs,PDTM Directorate,Alexander Mann Solutions Limited,2812769,736.60,Not Applicable
Department for Business Energy and Industrial Strategy,Intellectual Property Office,06/06/2023,Pay Costs,PDTM Directorate,Alexander Mann Solutions Limited,2812770,736.60,Not Applicable
Department for Business Energy and Industrial Strategy,Intellectual Property Office,06/06/2023,Pay Costs,PDTM Directorate,Alexander Mann Solutions Limited,2812771,597.24,Not Applicable
Department for Business Energy and Industrial Strategy,Intellectual Property Office,21/06/2023,Pay Costs,PDTM Directorate,Alexander Mann Solutions Limited,2812772,736.60,Not Applicable
Department for Business Energy and Industrial Strategy,Intellectual Property Office,06/06/2023,Pay Costs,PDTM Directorate,Alexander Mann Solutions Limited,2812773,655.34,Not Applicable
Department for Business Energy and Industrial Strategy,Intellectual Property Office,06/06/2023,Pay Costs,DDaT Directorate,Alexander Mann Solutions Limited,2812774,"8,820.84",Not Applicable
Department for Business Energy and Industrial Strategy,Intellectual Property Office,06/06/2023,Pay Costs,Projects,Alexander Mann Solutions Limited,2812775,"2,999.70",Not Applicable
Department for Business Energy and Industrial Strategy,Intellectual Property Office,06/06/2023,Pay Costs,DDaT Directorate,Alexander Mann Solutions Limited,2812776,"4,090.44",Not Applicable
Department for Business Energy and Industrial Strategy,Intellectual Property Office,06/06/2023,Pay Costs,DDaT Directorate,Alexander Mann Solutions Limited,2812777,"3,024.30",Not Applicable
Department for Business Energy and Industrial Strategy,Intellectual Property Office,06/06/2023,Pay Costs,DDaT Directorate,Alexander Mann Solutions Limited,2812779,"4,095.36",Not Applicable
Department for Business Energy and Industrial Strategy,Intellectual Property Office,06/06/2023,Pay Costs,PDTM Directorate,Alexander Mann Solutions Limited,2812780,736.60,Not Applicable
Department for Business Energy and Industrial Strategy,Intellectual Property Office,06/06/2023,Pay Costs,DDaT Directorate,Alexander Mann Solutions Limited,2812781,"3,272.35",Not Applicable
Department for Business Energy and Industrial Strategy,Intellectual Property Office,06/06/2023,Pay Costs,DDaT Directorate,Alexander Mann Solutions Limited,2812782,"3,465.30",Not Applicable
Department for Business Energy and Industrial Strategy,Intellectual Property Office,06/06/2023,Pay Costs,PDTM Directorate,Alexander Mann Solutions Limited,2812783,972.73,Not Applicable
Department for Business Energy and Industrial Strategy,Intellectual Property Office,06/06/2023,Pay Costs,PDTM Directorate,Alexander Mann Solutions Limited,2812784,736.60,Not Applicable
Department for Business Energy and Industrial Strategy,Intellectual Property Office,06/06/2023,Pay Costs,PDTM Directorate,Alexander Mann Solutions Limited,2812785,557.42,Not Applicable
Department for Business Energy and Industrial Strategy,Intellectual Property Office,06/06/2023,Pay Costs,PDTM Directorate,Alexander Mann Solutions Limited,2812786,736.60,Not Applicable
Department for Business Energy and Industrial Strategy,Intellectual Property Office,06/06/2023,Pay Costs,Projects,Alexander Mann Solutions Limited,2812787,"4,410.42",Not Applicable
Department for Business Energy and Industrial Strategy,Intellectual Property Office,06/06/2023,Pay Costs,DDaT Directorate,Alexander Mann Solutions Limited,2812788,"1,601.42",Not Applicable
Department for Business Energy and Industrial Strategy,Intellectual Property Office,06/06/2023,Pay Costs,DDaT Directorate,Alexander Mann Solutions Limited,2812789,"3,465.30",Not Applicable
Department for Business Energy and Industrial Strategy,Intellectual Property Office,06/06/2023,Pay Costs,Finance Directorate,Alexander Mann Solutions Limited,2812791,597.24,Not Applicable
Department for Business Energy and Industrial Strategy,Intellectual Property Office,06/06/2023,Pay Costs,DDaT Directorate,Alexander Mann Solutions Limited,2812792,"4,431.36",Not Applicable
Department for Business Energy and Industrial Strategy,Intellectual Property Office,06/06/2023,Pay Costs,PDTM Directorate,Alexander Mann Solutions Limited,2812795,685.98,Not Applicable
Department for Business Energy and Industrial Strategy,Intellectual Property Office,06/06/2023,Pay Costs,PDTM Directorate,Alexander Mann Solutions Limited,2812796,597.24,Not Applicable
Department for Business Energy and Industrial Strategy,Intellectual Property Office,06/06/2023,Pay Costs,PDTM Directorate,Alexander Mann Solutions Limited,2812797,577.33,Not Applicable
Department for Business Energy and Industrial Strategy,Intellectual Property Office,06/06/2023,Pay Costs,PDTM Directorate,Alexander Mann Solutions Limited,2812798,736.60,Not Applicable
Department for Business Energy and Industrial Strategy,Intellectual Property Office,06/06/2023,Pay Costs,PDTM Directorate,Alexander Mann Solutions Limited,2812799,656.96,Not Applicable
Department for Business Energy and Industrial Strategy,Intellectual Property Office,06/06/2023,Pay Costs,PDTM Directorate,Alexander Mann Solutions Limited,2812800,736.60,Not Applicable
Department for Business Energy and Industrial Strategy,Intellectual Property Office,06/06/2023,Pay Costs,PDTM Directorate,Alexander Mann Solutions Limited,2812801,736.60,Not Applicable
Department for Business Energy and Industrial Strategy,Intellectual Property Office,06/06/2023,Pay Costs,PDTM Directorate,Alexander Mann Solutions Limited,2812802,994.98,Not Applicable
Department for Business Energy and Industrial Strategy,Intellectual Property Office,06/06/2023,Pay Costs,PDTM Directorate,Alexander Mann Solutions Limited,2812803,736.60,Not Applicable
Department for Business Energy and Industrial Strategy,Intellectual Property Office,06/06/2023,Pay Costs,PDTM Directorate,Alexander Mann Solutions Limited,2812804,597.24,Not Applicable
Department for Business Energy and Industrial Strategy,Intellectual Property Office,06/06/2023,Pay Costs,PDTM Directorate,Alexander Mann Solutions Limited,2812805,"1,259.48",Not Applicable
Department for Business Energy and Industrial Strategy,Intellectual Property Office,06/06/2023,Pay Costs,PDTM Directorate,Alexander Mann Solutions Limited,2812807,531.36,Not Applicable
Department for Business Energy and Industrial Strategy,Intellectual Property Office,06/06/2023,Pay Costs,PDTM Directorate,Alexander Mann Solutions Limited,2812808,736.60,Not Applicable
Department for Business Energy and Industrial Strategy,Intellectual Property Office,06/06/2023,Pay Costs,PDTM Directorate,Alexander Mann Solutions Limited,2812810,736.60,Not Applicable
Department for Business Energy and Industrial Strategy,Intellectual Property Office,06/06/2023,Pay Costs,PDTM Directorate,Alexander Mann Solutions Limited,2812811,736.60,Not Applicable
Department for Business Energy and Industrial Strategy,Intellectual Property Office,06/06/2023,Pay Costs,DDaT Directorate,Alexander Mann Solutions Limited,2812812,"3,465.30",Not Applicable
Department for Business Energy and Industrial Strategy,Intellectual Property Office,06/06/2023,Pay Costs,DDaT Directorate,Alexander Mann Solutions Limited,2812813,"4,095.36",Not Applicable
Department for Business Energy and Industrial Strategy,Intellectual Property Office,06/06/2023,Pay Costs,DDaT Directorate,Alexander Mann Solutions Limited,2812814,"4,158.36",Not Applicable
Department for Business Energy and Industrial Strategy,Intellectual Property Office,06/06/2023,Pay Costs,PDTM Directorate,Alexander Mann Solutions Limited,2812815,736.60,Not Applicable
Department for Business Energy and Industrial Strategy,Intellectual Property Office,06/06/2023,Pay Costs,PDTM Directorate,Alexander Mann Solutions Limited,2812816,"1,223.64",Not Applicable
Department for Business Energy and Industrial Strategy,Intellectual Property Office,06/06/2023,Pay Costs,DDaT Directorate,Alexander Mann Solutions Limited,2812817,"2,440.62",Not Applicable
Department for Business Energy and Industrial Strategy,Intellectual Property Office,06/06/2023,Pay Costs,DDaT Directorate,Alexander Mann Solutions Limited,2812818,"3,695.58",Not Applicable
Department for Business Energy and Industrial Strategy,Intellectual Property Office,06/06/2023,Pay Costs,DDaT Directorate,Alexander Mann Solutions Limited,2812819,"4,252.86",Not Applicable
Department for Business Energy and Industrial Strategy,Intellectual Property Office,06/06/2023,Pay Costs,DDaT Directorate,Alexander Mann Solutions Limited,2812820,"2,520.24",Not Applicable
Department for Business Energy and Industrial Strategy,Intellectual Property Office,06/06/2023,Pay Costs,"Rights, Policy & Enforcement Directorate",Alexander Mann Solutions Limited,2812821,"1,238.45",Not Applicable
Department for Business Energy and Industrial Strategy,Intellectual Property Office,06/06/2023,Pay Costs,PDTM Directorate,Alexander Mann Solutions Limited,2812823,736.60,Not Applicable
Department for Business Energy and Industrial Strategy,Intellectual Property Office,06/06/2023,Pay Costs,PDTM Directorate,Alexander Mann Solutions Limited,2812824,736.60,Not Applicable
Department for Business Energy and Industrial Strategy,Intellectual Property Office,06/06/2023,Pay Costs,PDTM Directorate,Alexander Mann Solutions Limited,2812825,736.60,Not Applicable
Department for Business Energy and Industrial Strategy,Intellectual Property Office,06/06/2023,Pay Costs,PDTM Directorate,Alexander Mann Solutions Limited,2812826,736.60,Not Applicable
Department for Business Energy and Industrial Strategy,Intellectual Property Office,06/06/2023,Pay Costs,"Rights, Policy & Enforcement Directorate",Alexander Mann Solutions Limited,2812827,696.78,Not Applicable
Department for Business Energy and Industrial Strategy,Intellectual Property Office,06/06/2023,Pay Costs,DDaT Directorate,Alexander Mann Solutions Limited,2812828,"4,003.56",Not Applicable
Department for Business Energy and Industrial Strategy,Intellectual Property Office,06/06/2023,Pay Costs,PDTM Directorate,Alexander Mann Solutions Limited,2812829,736.60,Not Applicable
Department for Business Energy and Industrial Strategy,Intellectual Property Office,13/06/2023,Pay Costs,PDTM Directorate,Alexander Mann Solutions Limited,2817605,587.29,Not Applicable
Department for Business Energy and Industrial Strategy,Intellectual Property Office,13/06/2023,Pay Costs,Projects,Alexander Mann Solutions Limited,2817606,"1,886.04",Not Applicable
Department for Business Energy and Industrial Strategy,Intellectual Property Office,13/06/2023,Pay Costs,DDaT Directorate,Alexander Mann Solutions Limited,2817607,"6,421.79",Not Applicable
Department for Business Energy and Industrial Strategy,Intellectual Property Office,13/06/2023,Pay Costs,Projects,Alexander Mann Solutions Limited,2817608,"3,449.23",Not Applicable
Department for Business Energy and Industrial Strategy,Intellectual Property Office,13/06/2023,Pay Costs,DDaT Directorate,Alexander Mann Solutions Limited,2817609,"2,236.32",Not Applicable
Department for Business Energy and Industrial Strategy,Intellectual Property Office,13/06/2023,Pay Costs,DDaT Directorate,Alexander Mann Solutions Limited,2817610,"5,789.02",Not Applicable
Department for Business Energy and Industrial Strategy,Intellectual Property Office,13/06/2023,Pay Costs,DDaT Directorate,Alexander Mann Solutions Limited,2817611,"2,168.06",Not Applicable
Department for Business Energy and Industrial Strategy,Intellectual Property Office,13/06/2023,Pay Costs,PDTM Directorate,Alexander Mann Solutions Limited,2817616,587.29,Not Applicable
Department for Business Energy and Industrial Strategy,Intellectual Property Office,13/06/2023,Pay Costs,PDTM Directorate,Alexander Mann Solutions Limited,2817617,587.29,Not Applicable
Department for Business Energy and Industrial Strategy,Intellectual Property Office,13/06/2023,Pay Costs,PDTM Directorate,Alexander Mann Solutions Limited,2817619,522.50,Not Applicable
Department for Business Energy and Industrial Strategy,Intellectual Property Office,13/06/2023,Pay Costs,DDaT Directorate,Alexander Mann Solutions Limited,2817620,"3,528.34",Not Applicable
Department for Business Energy and Industrial Strategy,Intellectual Property Office,13/06/2023,Pay Costs,DDaT Directorate,Alexander Mann Solutions Limited,2817621,"10,647.94",Not Applicable
Department for Business Energy and Industrial Strategy,Intellectual Property Office,13/06/2023,Pay Costs,Projects,Alexander Mann Solutions Limited,2817622,"2,399.76",Not Applicable
Department for Business Energy and Industrial Strategy,Intellectual Property Office,13/06/2023,Pay Costs,DDaT Directorate,Alexander Mann Solutions Limited,2817623,"3,272.35",Not Applicable
Department for Business Energy and Industrial Strategy,Intellectual Property Office,13/06/2023,Pay Costs,DDaT Directorate,Alexander Mann Solutions Limited,2817624,"2,419.44",Not Applicable
Department for Business Energy and Industrial Strategy,Intellectual Property Office,13/06/2023,Pay Costs,DDaT Directorate,Alexander Mann Solutions Limited,2817625,"3,276.29",Not Applicable
Department for Business Energy and Industrial Strategy,Intellectual Property Office,13/06/2023,Pay Costs,PDTM Directorate,Alexander Mann Solutions Limited,2817626,542.50,Not Applicable
Department for Business Energy and Industrial Strategy,Intellectual Property Office,13/06/2023,Pay Costs,DDaT Directorate,Alexander Mann Solutions Limited,2817627,"9,072.86",Not Applicable
Department for Business Energy and Industrial Strategy,Intellectual Property Office,13/06/2023,Pay Costs,DDaT Directorate,Alexander Mann Solutions Limited,2817628,"2,772.24",Not Applicable
Department for Business Energy and Industrial Strategy,Intellectual Property Office,13/06/2023,Pay Costs,PDTM Directorate,Alexander Mann Solutions Limited,2817629,556.20,Not Applicable
Department for Business Energy and Industrial Strategy,Intellectual Property Office,13/06/2023,Pay Costs,PDTM Directorate,Alexander Mann Solutions Limited,2817631,597.24,Not Applicable
Department for Business Energy and Industrial Strategy,Intellectual Property Office,13/06/2023,Pay Costs,Projects,Alexander Mann Solutions Limited,2817632,"3,528.34",Not Applicable
Department for Business Energy and Industrial Strategy,Intellectual Property Office,13/06/2023,Pay Costs,DDaT Directorate,Alexander Mann Solutions Limited,2817633,"3,202.85",Not Applicable
Department for Business Energy and Industrial Strategy,Intellectual Property Office,13/06/2023,Pay Costs,DDaT Directorate,Alexander Mann Solutions Limited,2817634,"2,772.24",Not Applicable
Department for Business Energy and Industrial Strategy,Intellectual Property Office,13/06/2023,Pay Costs,Finance Directorate,Alexander Mann Solutions Limited,2817636,597.24,Not Applicable
Department for Business Energy and Industrial Strategy,Intellectual Property Office,13/06/2023,Pay Costs,DDaT Directorate,Alexander Mann Solutions Limited,2817638,"6,237.54",Not Applicable
Department for Business Energy and Industrial Strategy,Intellectual Property Office,13/06/2023,Pay Costs,PDTM Directorate,Alexander Mann Solutions Limited,2817639,546.94,Not Applicable
Department for Business Energy and Industrial Strategy,Intellectual Property Office,13/06/2023,Pay Costs,PDTM Directorate,Alexander Mann Solutions Limited,2817640,597.24,Not Applicable
Department for Business Energy and Industrial Strategy,Intellectual Property Office,13/06/2023,Pay Costs,PDTM Directorate,Alexander Mann Solutions Limited,2817641,587.29,Not Applicable
Department for Business Energy and Industrial Strategy,Intellectual Property Office,13/06/2023,Pay Costs,PDTM Directorate,Alexander Mann Solutions Limited,2817642,597.24,Not Applicable
Department for Business Energy and Industrial Strategy,Intellectual Property Office,13/06/2023,Pay Costs,PDTM Directorate,Alexander Mann Solutions Limited,2817645,597.24,Not Applicable
Department for Business Energy and Industrial Strategy,Intellectual Property Office,13/06/2023,Pay Costs,PDTM Directorate,Alexander Mann Solutions Limited,2817646,587.29,Not Applicable
Department for Business Energy and Industrial Strategy,Intellectual Property Office,13/06/2023,Pay Costs,PDTM Directorate,Alexander Mann Solutions Limited,2817648,592.26,Not Applicable
Department for Business Energy and Industrial Strategy,Intellectual Property Office,13/06/2023,Pay Costs,PDTM Directorate,Alexander Mann Solutions Limited,2817649,"1,699.50",Not Applicable
Department for Business Energy and Industrial Strategy,Intellectual Property Office,13/06/2023,Pay Costs,PDTM Directorate,Alexander Mann Solutions Limited,2817651,531.36,Not Applicable
Department for Business Energy and Industrial Strategy,Intellectual Property Office,13/06/2023,Pay Costs,PDTM Directorate,Alexander Mann Solutions Limited,2817652,587.29,Not Applicable
Department for Business Energy and Industrial Strategy,Intellectual Property Office,13/06/2023,Pay Costs,PDTM Directorate,Alexander Mann Solutions Limited,2817654,597.24,Not Applicable
Department for Business Energy and Industrial Strategy,Intellectual Property Office,13/06/2023,Pay Costs,PDTM Directorate,Alexander Mann Solutions Limited,2817655,602.22,Not Applicable
Department for Business Energy and Industrial Strategy,Intellectual Property Office,13/06/2023,Pay Costs,DDaT Directorate,Alexander Mann Solutions Limited,2817656,"2,772.24",Not Applicable
Department for Business Energy and Industrial Strategy,Intellectual Property Office,13/06/2023,Pay Costs,DDaT Directorate,Alexander Mann Solutions Limited,2817657,"3,276.29",Not Applicable
Department for Business Energy and Industrial Strategy,Intellectual Property Office,13/06/2023,Pay Costs,DDaT Directorate,Alexander Mann Solutions Limited,2817658,"3,326.69",Not Applicable
Department for Business Energy and Industrial Strategy,Intellectual Property Office,13/06/2023,Pay Costs,PDTM Directorate,Alexander Mann Solutions Limited,2817659,597.24,Not Applicable
Department for Business Energy and Industrial Strategy,Intellectual Property Office,13/06/2023,Pay Costs,PDTM Directorate,Alexander Mann Solutions Limited,2817660,"1,054.31",Not Applicable
Department for Business Energy and Industrial Strategy,Intellectual Property Office,13/06/2023,Pay Costs,DDaT Directorate,Alexander Mann Solutions Limited,2817662,"6,031.15",Not Applicable
Department for Business Energy and Industrial Strategy,Intellectual Property Office,13/06/2023,Pay Costs,DDaT Directorate,Alexander Mann Solutions Limited,2817663,"3,402.29",Not Applicable
Department for Business Energy and Industrial Strategy,Intellectual Property Office,13/06/2023,Pay Costs,DDaT Directorate,Alexander Mann Solutions Limited,2817664,"2,016.19",Not Applicable
Department for Business Energy and Industrial Strategy,Intellectual Property Office,13/06/2023,Pay Costs,PDTM Directorate,Alexander Mann Solutions Limited,2817665,587.29,Not Applicable
Department for Business Energy and Industrial Strategy,Intellectual Property Office,13/06/2023,Pay Costs,PDTM Directorate,Alexander Mann Solutions Limited,2817666,587.29,Not Applicable
Department for Business Energy and Industrial Strategy,Intellectual Property Office,13/06/2023,Pay Costs,PDTM Directorate,Alexander Mann Solutions Limited,2817667,587.29,Not Applicable
Department for Business Energy and Industrial Strategy,Intellectual Property Office,13/06/2023,Pay Costs,PDTM Directorate,Alexander Mann Solutions Limited,2817668,597.24,Not Applicable
Department for Business Energy and Industrial Strategy,Intellectual Property Office,13/06/2023,Pay Costs,PDTM Directorate,Alexander Mann Solutions Limited,2817669,895.86,Not Applicable
Department for Business Energy and Industrial Strategy,Intellectual Property Office,13/06/2023,Pay Costs,DDaT Directorate,Alexander Mann Solutions Limited,2817670,"7,635.52",Not Applicable
Department for Business Energy and Industrial Strategy,Intellectual Property Office,13/06/2023,Pay Costs,DDaT Directorate,Alexander Mann Solutions Limited,2817671,"3,202.85",Not Applicable
Department for Business Energy and Industrial Strategy,Intellectual Property Office,13/06/2023,Pay Costs,PDTM Directorate,Alexander Mann Solutions Limited,2817672,587.29,Not Applicable
Department for Business Energy and Industrial Strategy,Intellectual Property Office,13/06/2023,Pay Costs,DDaT Directorate,Alexander Mann Solutions Limited,2817673,"6,005.38",Not Applicable
Department for Business Energy and Industrial Strategy,Intellectual Property Office,13/06/2023,Pay Costs,PDTM Directorate,Alexander Mann Solutions Limited,2817674,597.24,Not Applicable
Department for Business Energy and Industrial Strategy,Intellectual Property Office,21/06/2023,Pay Costs,PDTM Directorate,Alexander Mann Solutions Limited,2822461,736.60,Not Applicable
Department for Business Energy and Industrial Strategy,Intellectual Property Office,21/06/2023,Pay Costs,DDaT Directorate,Alexander Mann Solutions Limited,2822463,"2,854.13",Not Applicable
Department for Business Energy and Industrial Strategy,Intellectual Property Office,20/06/2023,Pay Costs,Projects,Alexander Mann Solutions Limited,2822464,"4,311.54",Not Applicable
Department for Business Energy and Industrial Strategy,Intellectual Property Office,20/06/2023,Pay Costs,DDaT Directorate,Alexander Mann Solutions Limited,2822465,"2,795.40",Not Applicable
Department for Business Energy and Industrial Strategy,Intellectual Property Office,20/06/2023,Pay Costs,PDTM Directorate,Alexander Mann Solutions Limited,2822466,655.34,Not Applicable
Department for Business Energy and Industrial Strategy,Intellectual Property Office,20/06/2023,Pay Costs,PDTM Directorate,Alexander Mann Solutions Limited,2822468,587.29,Not Applicable
Department for Business Energy and Industrial Strategy,Intellectual Property Office,21/06/2023,Pay Costs,PDTM Directorate,Alexander Mann Solutions Limited,2822469,736.60,Not Applicable
Department for Business Energy and Industrial Strategy,Intellectual Property Office,20/06/2023,Pay Costs,PDTM Directorate,Alexander Mann Solutions Limited,2822470,736.60,Not Applicable
Department for Business Energy and Industrial Strategy,Intellectual Property Office,20/06/2023,Pay Costs,PDTM Directorate,Alexander Mann Solutions Limited,2822471,736.60,Not Applicable
Department for Business Energy and Industrial Strategy,Intellectual Property Office,20/06/2023,Pay Costs,PDTM Directorate,Alexander Mann Solutions Limited,2822472,522.50,Not Applicable
Department for Business Energy and Industrial Strategy,Intellectual Property Office,20/06/2023,Pay Costs,Projects,Alexander Mann Solutions Limited,2822473,"2,999.70",Not Applicable
Department for Business Energy and Industrial Strategy,Intellectual Property Office,20/06/2023,Pay Costs,DDaT Directorate,Alexander Mann Solutions Limited,2822474,"4,090.44",Not Applicable
Department for Business Energy and Industrial Strategy,Intellectual Property Office,20/06/2023,Pay Costs,DDaT Directorate,Alexander Mann Solutions Limited,2822475,"3,024.30",Not Applicable
Department for Business Energy and Industrial Strategy,Intellectual Property Office,20/06/2023,Pay Costs,DDaT Directorate,Alexander Mann Solutions Limited,2822476,"4,095.36",Not Applicable
Department for Business Energy and Industrial Strategy,Intellectual Property Office,21/06/2023,Pay Costs,PDTM Directorate,Alexander Mann Solutions Limited,2822477,587.29,Not Applicable
Department for Business Energy and Industrial Strategy,Intellectual Property Office,20/06/2023,Pay Costs,DDaT Directorate,Alexander Mann Solutions Limited,2822478,"5,040.48",Not Applicable
Department for Business Energy and Industrial Strategy,Intellectual Property Office,20/06/2023,Pay Costs,DDaT Directorate,Alexander Mann Solutions Limited,2822479,"3,272.35",Not Applicable
Department for Business Energy and Industrial Strategy,Intellectual Property Office,20/06/2023,Pay Costs,DDaT Directorate,Alexander Mann Solutions Limited,2822480,"3,465.30",Not Applicable
Department for Business Energy and Industrial Strategy,Intellectual Property Office,20/06/2023,Pay Costs,PDTM Directorate,Alexander Mann Solutions Limited,2822481,597.24,Not Applicable
Department for Business Energy and Industrial Strategy,Intellectual Property Office,20/06/2023,Pay Costs,PDTM Directorate,Alexander Mann Solutions Limited,2822482,736.60,Not Applicable
Department for Business Energy and Industrial Strategy,Intellectual Property Office,20/06/2023,Pay Costs,PDTM Directorate,Alexander Mann Solutions Limited,2822483,597.24,Not Applicable
Department for Business Energy and Industrial Strategy,Intellectual Property Office,20/06/2023,Pay Costs,Projects,Alexander Mann Solutions Limited,2822484,"4,410.42",Not Applicable
Department for Business Energy and Industrial Strategy,Intellectual Property Office,20/06/2023,Pay Costs,DDaT Directorate,Alexander Mann Solutions Limited,2822485,"4,003.56",Not Applicable
Department for Business Energy and Industrial Strategy,Intellectual Property Office,21/06/2023,Pay Costs,Finance Directorate,Alexander Mann Solutions Limited,2822486,736.60,Not Applicable
Department for Business Energy and Industrial Strategy,Intellectual Property Office,21/06/2023,Pay Costs,Finance Directorate,Alexander Mann Solutions Limited,2822487,736.60,Not Applicable
Department for Business Energy and Industrial Strategy,Intellectual Property Office,21/06/2023,Pay Costs,PDTM Directorate,Alexander Mann Solutions Limited,2822489,736.60,Not Applicable
Department for Business Energy and Industrial Strategy,Intellectual Property Office,21/06/2023,Pay Costs,DDaT Directorate,Alexander Mann Solutions Limited,2822490,"3,465.30",Not Applicable
Department for Business Energy and Industrial Strategy,Intellectual Property Office,21/06/2023,Pay Costs,PDTM Directorate,Alexander Mann Solutions Limited,2822491,685.98,Not Applicable
Department for Business Energy and Industrial Strategy,Intellectual Property Office,21/06/2023,Pay Costs,PDTM Directorate,Alexander Mann Solutions Limited,2822493,597.24,Not Applicable
Department for Business Energy and Industrial Strategy,Intellectual Property Office,21/06/2023,Pay Costs,PDTM Directorate,Alexander Mann Solutions Limited,2822494,676.87,Not Applicable
Department for Business Energy and Industrial Strategy,Intellectual Property Office,21/06/2023,Pay Costs,PDTM Directorate,Alexander Mann Solutions Limited,2822495,691.80,Not Applicable
Department for Business Energy and Industrial Strategy,Intellectual Property Office,21/06/2023,Pay Costs,PDTM Directorate,Alexander Mann Solutions Limited,2822496,736.60,Not Applicable
Department for Business Energy and Industrial Strategy,Intellectual Property Office,21/06/2023,Pay Costs,PDTM Directorate,Alexander Mann Solutions Limited,2822497,736.60,Not Applicable
Department for Business Energy and Industrial Strategy,Intellectual Property Office,21/06/2023,Pay Costs,PDTM Directorate,Alexander Mann Solutions Limited,2822498,"1,080.26",Not Applicable
Department for Business Energy and Industrial Strategy,Intellectual Property Office,21/06/2023,Pay Costs,PDTM Directorate,Alexander Mann Solutions Limited,2822500,656.96,Not Applicable
Department for Business Energy and Industrial Strategy,Intellectual Property Office,21/06/2023,Pay Costs,PDTM Directorate,Alexander Mann Solutions Limited,2822501,"1,259.48",Not Applicable
Department for Business Energy and Industrial Strategy,Intellectual Property Office,21/06/2023,Pay Costs,PDTM Directorate,Alexander Mann Solutions Limited,2822502,597.24,Not Applicable
Department for Business Energy and Industrial Strategy,Intellectual Property Office,21/06/2023,Pay Costs,PDTM Directorate,Alexander Mann Solutions Limited,2822503,655.34,Not Applicable
Department for Business Energy and Industrial Strategy,Intellectual Property Office,21/06/2023,Pay Costs,PDTM Directorate,Alexander Mann Solutions Limited,2822504,736.60,Not Applicable
Department for Business Energy and Industrial Strategy,Intellectual Property Office,21/06/2023,Pay Costs,PDTM Directorate,Alexander Mann Solutions Limited,2822506,736.60,Not Applicable
Department for Business Energy and Industrial Strategy,Intellectual Property Office,21/06/2023,Pay Costs,PDTM Directorate,Alexander Mann Solutions Limited,2822507,736.60,Not Applicable
Department for Business Energy and Industrial Strategy,Intellectual Property Office,21/06/2023,Pay Costs,DDaT Directorate,Alexander Mann Solutions Limited,2822508,"3,465.30",Not Applicable
Department for Business Energy and Industrial Strategy,Intellectual Property Office,21/06/2023,Pay Costs,DDaT Directorate,Alexander Mann Solutions Limited,2822509,"4,095.36",Not Applicable
Department for Business Energy and Industrial Strategy,Intellectual Property Office,21/06/2023,Pay Costs,DDaT Directorate,Alexander Mann Solutions Limited,2822510,"4,158.36",Not Applicable
Department for Business Energy and Industrial Strategy,Intellectual Property Office,21/06/2023,Pay Costs,PDTM Directorate,Alexander Mann Solutions Limited,2822511,736.60,Not Applicable
Department for Business Energy and Industrial Strategy,Intellectual Property Office,21/06/2023,Pay Costs,PDTM Directorate,Alexander Mann Solutions Limited,2822512,981.38,Not Applicable
Department for Business Energy and Industrial Strategy,Intellectual Property Office,21/06/2023,Pay Costs,DDaT Directorate,Alexander Mann Solutions Limited,2822513,"1,464.37",Not Applicable
Department for Business Energy and Industrial Strategy,Intellectual Property Office,21/06/2023,Pay Costs,DDaT Directorate,Alexander Mann Solutions Limited,2822514,"3,350.64",Not Applicable
Department for Business Energy and Industrial Strategy,Intellectual Property Office,21/06/2023,Pay Costs,DDaT Directorate,Alexander Mann Solutions Limited,2822515,"2,520.24",Not Applicable
Department for Business Energy and Industrial Strategy,Intellectual Property Office,21/06/2023,Pay Costs,"Rights, Policy & Enforcement Directorate",Alexander Mann Solutions Limited,2822516,"2,086.62",Not Applicable
Department for Business Energy and Industrial Strategy,Intellectual Property Office,21/06/2023,Pay Costs,PDTM Directorate,Alexander Mann Solutions Limited,2822517,736.60,Not Applicable
Department for Business Energy and Industrial Strategy,Intellectual Property Office,21/06/2023,Pay Costs,PDTM Directorate,Alexander Mann Solutions Limited,2822518,736.60,Not Applicable
Department for Business Energy and Industrial Strategy,Intellectual Property Office,21/06/2023,Pay Costs,PDTM Directorate,Alexander Mann Solutions Limited,2822519,736.60,Not Applicable
Department for Business Energy and Industrial Strategy,Intellectual Property Office,21/06/2023,Pay Costs,PDTM Directorate,Alexander Mann Solutions Limited,2822520,736.60,Not Applicable
Department for Business Energy and Industrial Strategy,Intellectual Property Office,21/06/2023,Pay Costs,PDTM Directorate,Alexander Mann Solutions Limited,2822521,736.60,Not Applicable
Department for Business Energy and Industrial Strategy,Intellectual Property Office,21/06/2023,Pay Costs,"Rights, Policy & Enforcement Directorate",Alexander Mann Solutions Limited,2822522,"1,254.20",Not Applicable
Department for Business Energy and Industrial Strategy,Intellectual Property Office,21/06/2023,Pay Costs,DDaT Directorate,Alexander Mann Solutions Limited,2822524,"4,003.56",Not Applicable
Department for Business Energy and Industrial Strategy,Intellectual Property Office,21/06/2023,Pay Costs,PDTM Directorate,Alexander Mann Solutions Limited,2822525,736.60,Not Applicable
Department for Business Energy and Industrial Strategy,Intellectual Property Office,21/06/2023,Pay Costs,PDTM Directorate,Alexander Mann Solutions Limited,2822526,829.36,Not Applicable
Department for Business Energy and Industrial Strategy,Intellectual Property Office,21/06/2023,Pay Costs,DDaT Directorate,Alexander Mann Solutions Limited,2822527,"4,410.42",Not Applicable
Department for Business Energy and Industrial Strategy,Intellectual Property Office,21/06/2023,Pay Costs,DDaT Directorate,Alexander Mann Solutions Limited,2822528,"3,233.66",Not Applicable
Department for Business Energy and Industrial Strategy,Intellectual Property Office,21/06/2023,Pay Costs,PDTM Directorate,Alexander Mann Solutions Limited,2822529,764.20,Not Applicable
Department for Business Energy and Industrial Strategy,Intellectual Property Office,21/06/2023,Pay Costs,PDTM Directorate,Alexander Mann Solutions Limited,2822530,597.24,Not Applicable
Department for Business Energy and Industrial Strategy,Intellectual Property Office,27/06/2023,Pay Costs,PDTM Directorate,Alexander Mann Solutions Limited,2827330,736.60,Not Applicable
Department for Business Energy and Industrial Strategy,Intellectual Property Office,27/06/2023,Pay Costs,Projects,Alexander Mann Solutions Limited,2827331,"4,311.54",Not Applicable
Department for Business Energy and Industrial Strategy,Intellectual Property Office,27/06/2023,Pay Costs,DDaT Directorate,Alexander Mann Solutions Limited,2827332,"3,216.12",Not Applicable
Department for Business Energy and Industrial Strategy,Intellectual Property Office,27/06/2023,Pay Costs,DDaT Directorate,Alexander Mann Solutions Limited,2827333,"3,794.11",Not Applicable
Department for Business Energy and Industrial Strategy,Intellectual Property Office,27/06/2023,Pay Costs,PDTM Directorate,Alexander Mann Solutions Limited,2827334,655.34,Not Applicable
Department for Business Energy and Industrial Strategy,Intellectual Property Office,27/06/2023,Pay Costs,PDTM Directorate,Alexander Mann Solutions Limited,2827336,736.60,Not Applicable
Department for Business Energy and Industrial Strategy,Intellectual Property Office,27/06/2023,Pay Costs,PDTM Directorate,Alexander Mann Solutions Limited,2827337,736.60,Not Applicable
Department for Business Energy and Industrial Strategy,Intellectual Property Office,27/06/2023,Pay Costs,PDTM Directorate,Alexander Mann Solutions Limited,2827338,736.60,Not Applicable
Department for Business Energy and Industrial Strategy,Intellectual Property Office,27/06/2023,Pay Costs,PDTM Directorate,Alexander Mann Solutions Limited,2827339,736.60,Not Applicable
Department for Business Energy and Industrial Strategy,Intellectual Property Office,27/06/2023,Pay Costs,PDTM Directorate,Alexander Mann Solutions Limited,2827340,531.36,Not Applicable
Department for Business Energy and Industrial Strategy,Intellectual Property Office,27/06/2023,Pay Costs,Projects,Alexander Mann Solutions Limited,2827341,"2,399.76",Not Applicable
Department for Business Energy and Industrial Strategy,Intellectual Property Office,29/06/2023,Pay Costs,DDaT Directorate,Alexander Mann Solutions Limited,2827342,"4,090.44",Not Applicable
Department for Business Energy and Industrial Strategy,Intellectual Property Office,27/06/2023,Pay Costs,DDaT Directorate,Alexander Mann Solutions Limited,2827343,"3,024.30",Not Applicable
Department for Business Energy and Industrial Strategy,Intellectual Property Office,27/06/2023,Pay Costs,DDaT Directorate,Alexander Mann Solutions Limited,2827344,"4,095.36",Not Applicable
Department for Business Energy and Industrial Strategy,Intellectual Property Office,27/06/2023,Pay Costs,PDTM Directorate,Alexander Mann Solutions Limited,2827345,721.67,Not Applicable
Department for Business Energy and Industrial Strategy,Intellectual Property Office,27/06/2023,Pay Costs,DDaT Directorate,Alexander Mann Solutions Limited,2827346,"5,040.48",Not Applicable
Department for Business Energy and Industrial Strategy,Intellectual Property Office,27/06/2023,Pay Costs,DDaT Directorate,Alexander Mann Solutions Limited,2827347,"3,272.35",Not Applicable
Department for Business Energy and Industrial Strategy,Intellectual Property Office,27/06/2023,Pay Costs,DDaT Directorate,Alexander Mann Solutions Limited,2827348,"3,465.30",Not Applicable
Department for Business Energy and Industrial Strategy,Intellectual Property Office,27/06/2023,Pay Costs,PDTM Directorate,Alexander Mann Solutions Limited,2827350,607.20,Not Applicable
Department for Business Energy and Industrial Strategy,Intellectual Property Office,27/06/2023,Pay Costs,PDTM Directorate,Alexander Mann Solutions Limited,2827351,736.60,Not Applicable
Department for Business Energy and Industrial Strategy,Intellectual Property Office,27/06/2023,Pay Costs,Projects,Alexander Mann Solutions Limited,2827352,"4,410.42",Not Applicable
Department for Business Energy and Industrial Strategy,Intellectual Property Office,27/06/2023,Pay Costs,DDaT Directorate,Alexander Mann Solutions Limited,2827353,"4,003.56",Not Applicable
Department for Business Energy and Industrial Strategy,Intellectual Property Office,27/06/2023,Pay Costs,DDaT Directorate,Alexander Mann Solutions Limited,2827354,"3,465.30",Not Applicable
Department for Business Energy and Industrial Strategy,Intellectual Property Office,27/06/2023,Pay Costs,Finance Directorate,Alexander Mann Solutions Limited,2827355,716.69,Not Applicable
Department for Business Energy and Industrial Strategy,Intellectual Property Office,27/06/2023,Pay Costs,Finance Directorate,Alexander Mann Solutions Limited,2827356,736.60,Not Applicable
Department for Business Energy and Industrial Strategy,Intellectual Property Office,27/06/2023,Pay Costs,PDTM Directorate,Alexander Mann Solutions Limited,2827358,736.60,Not Applicable
Department for Business Energy and Industrial Strategy,Intellectual Property Office,27/06/2023,Pay Costs,PDTM Directorate,Alexander Mann Solutions Limited,2827359,736.60,Not Applicable
Department for Business Energy and Industrial Strategy,Intellectual Property Office,27/06/2023,Pay Costs,DDaT Directorate,Alexander Mann Solutions Limited,2827360,"3,465.30",Not Applicable
Department for Business Energy and Industrial Strategy,Intellectual Property Office,27/06/2023,Pay Costs,PDTM Directorate,Alexander Mann Solutions Limited,2827361,685.98,Not Applicable
Department for Business Energy and Industrial Strategy,Intellectual Property Office,27/06/2023,Pay Costs,PDTM Directorate,Alexander Mann Solutions Limited,2827362,597.24,Not Applicable
Department for Business Energy and Industrial Strategy,Intellectual Property Office,27/06/2023,Pay Costs,PDTM Directorate,Alexander Mann Solutions Limited,2827363,731.62,Not Applicable
Department for Business Energy and Industrial Strategy,Intellectual Property Office,27/06/2023,Pay Costs,PDTM Directorate,Alexander Mann Solutions Limited,2827364,736.60,Not Applicable
Department for Business Energy and Industrial Strategy,Intellectual Property Office,27/06/2023,Pay Costs,PDTM Directorate,Alexander Mann Solutions Limited,2827365,736.60,Not Applicable
Department for Business Energy and Industrial Strategy,Intellectual Property Office,27/06/2023,Pay Costs,PDTM Directorate,Alexander Mann Solutions Limited,2827366,681.85,Not Applicable
Department for Business Energy and Industrial Strategy,Intellectual Property Office,27/06/2023,Pay Costs,PDTM Directorate,Alexander Mann Solutions Limited,2827367,736.60,Not Applicable
Department for Business Energy and Industrial Strategy,Intellectual Property Office,27/06/2023,Pay Costs,PDTM Directorate,Alexander Mann Solutions Limited,2827368,736.60,Not Applicable
Department for Business Energy and Industrial Strategy,Intellectual Property Office,27/06/2023,Pay Costs,PDTM Directorate,Alexander Mann Solutions Limited,2827371,612.17,Not Applicable
Department for Business Energy and Industrial Strategy,Intellectual Property Office,27/06/2023,Pay Costs,PDTM Directorate,Alexander Mann Solutions Limited,2827372,685.98,Not Applicable
Department for Business Energy and Industrial Strategy,Intellectual Property Office,27/06/2023,Pay Costs,PDTM Directorate,Alexander Mann Solutions Limited,2827373,597.24,Not Applicable
Department for Business Energy and Industrial Strategy,Intellectual Property Office,27/06/2023,Pay Costs,PDTM Directorate,Alexander Mann Solutions Limited,2827374,655.34,Not Applicable
Department for Business Energy and Industrial Strategy,Intellectual Property Office,27/06/2023,Pay Costs,PDTM Directorate,Alexander Mann Solutions Limited,2827375,587.29,Not Applicable
Department for Business Energy and Industrial Strategy,Intellectual Property Office,27/06/2023,Pay Costs,PDTM Directorate,Alexander Mann Solutions Limited,2827377,736.60,Not Applicable
Department for Business Energy and Industrial Strategy,Intellectual Property Office,27/06/2023,Pay Costs,DDaT Directorate,Alexander Mann Solutions Limited,2827378,"3,465.30",Not Applicable
Department for Business Energy and Industrial Strategy,Intellectual Property Office,27/06/2023,Pay Costs,DDaT Directorate,Alexander Mann Solutions Limited,2827379,"4,095.36",Not Applicable
Department for Business Energy and Industrial Strategy,Intellectual Property Office,27/06/2023,Pay Costs,PDTM Directorate,Alexander Mann Solutions Limited,2827380,597.24,Not Applicable
Department for Business Energy and Industrial Strategy,Intellectual Property Office,27/06/2023,Pay Costs,DDaT Directorate,Alexander Mann Solutions Limited,2827382,"2,440.62",Not Applicable
Department for Business Energy and Industrial Strategy,Intellectual Property Office,27/06/2023,Pay Costs,DDaT Directorate,Alexander Mann Solutions Limited,2827383,"3,350.64",Not Applicable
Department for Business Energy and Industrial Strategy,Intellectual Property Office,27/06/2023,Pay Costs,DDaT Directorate,Alexander Mann Solutions Limited,2827384,"3,695.58",Not Applicable
Department for Business Energy and Industrial Strategy,Intellectual Property Office,27/06/2023,Pay Costs,DDaT Directorate,Alexander Mann Solutions Limited,2827385,"4,252.86",Not Applicable
Department for Business Energy and Industrial Strategy,Intellectual Property Office,27/06/2023,Pay Costs,DDaT Directorate,Alexander Mann Solutions Limited,2827386,"2,520.24",Not Applicable
Department for Business Energy and Industrial Strategy,Intellectual Property Office,27/06/2023,Pay Costs,"Rights, Policy & Enforcement Directorate",Alexander Mann Solutions Limited,2827387,"1,334.96",Not Applicable
Department for Business Energy and Industrial Strategy,Intellectual Property Office,27/06/2023,Pay Costs,PDTM Directorate,Alexander Mann Solutions Limited,2827388,736.60,Not Applicable
Department for Business Energy and Industrial Strategy,Intellectual Property Office,27/06/2023,Pay Costs,PDTM Directorate,Alexander Mann Solutions Limited,2827389,587.29,Not Applicable
Department for Business Energy and Industrial Strategy,Intellectual Property Office,27/06/2023,Pay Costs,PDTM Directorate,Alexander Mann Solutions Limited,2827390,736.60,Not Applicable
Department for Business Energy and Industrial Strategy,Intellectual Property Office,27/06/2023,Pay Costs,PDTM Directorate,Alexander Mann Solutions Limited,2827391,736.60,Not Applicable
Department for Business Energy and Industrial Strategy,Intellectual Property Office,27/06/2023,Pay Costs,PDTM Directorate,Alexander Mann Solutions Limited,2827392,736.60,Not Applicable
Department for Business Energy and Industrial Strategy,Intellectual Property Office,27/06/2023,Pay Costs,"Rights, Policy & Enforcement Directorate",Alexander Mann Solutions Limited,2827393,696.78,Not Applicable
Department for Business Energy and Industrial Strategy,Intellectual Property Office,27/06/2023,Pay Costs,DDaT Directorate,Alexander Mann Solutions Limited,2827395,"9,817.09",Not Applicable
Department for Business Energy and Industrial Strategy,Intellectual Property Office,27/06/2023,Pay Costs,DDaT Directorate,Alexander Mann Solutions Limited,2827396,"4,003.56",Not Applicable
Department for Business Energy and Industrial Strategy,Intellectual Property Office,27/06/2023,Pay Costs,PDTM Directorate,Alexander Mann Solutions Limited,2827397,736.60,Not Applicable
Department for Business Energy and Industrial Strategy,Intellectual Property Office,27/06/2023,Pay Costs,PDTM Directorate,Alexander Mann Solutions Limited,2827398,685.98,Not Applicable
Department for Business Energy and Industrial Strategy,Intellectual Property Office,27/06/2023,Pay Costs,DDaT Directorate,Alexander Mann Solutions Limited,2827399,"4,410.42",Not Applicable
Department for Business Energy and Industrial Strategy,Intellectual Property Office,27/06/2023,Pay Costs,DDaT Directorate,Alexander Mann Solutions Limited,2827400,"3,233.66",Not Applicable
Department for Business Energy and Industrial Strategy,Intellectual Property Office,27/06/2023,Pay Costs,PDTM Directorate,Alexander Mann Solutions Limited,2827401,736.60,Not Applicable
Department for Business Energy and Industrial Strategy,Intellectual Property Office,27/06/2023,Pay Costs,PDTM Directorate,Alexander Mann Solutions Limited,2827402,736.60,Not Applicable
Department for Business Energy and Industrial Strategy,Intellectual Property Office,02/06/2023,Pay Costs,Finance Directorate,Alexander Mann Solutions Limited,39181,-721.67,Not Applicable
Department for Business Energy and Industrial Strategy,Intellectual Property Office,13/06/2023,Pay Costs,PDTM Directorate,Alexander Mann Solutions Limited,39383,-793.51,Not Applicable
Department for Business Energy and Industrial Strategy,Intellectual Property Office,13/06/2023,Pay Costs,PDTM Directorate,Alexander Mann Solutions Limited,39385,-597.24,Not Applicable
Department for Business Energy and Industrial Strategy,Intellectual Property Office,07/06/2023,Supporting UK Business,PDTM Directorate,Secerna LLP,23761,"2,500.00",Not Applicable
Department for Business Energy and Industrial Strategy,Intellectual Property Office,02/06/2023,Supporting UK Business,PDTM Directorate,JA Kemp,951627,"5,000.00",Not Applicable
Department for Business Energy and Industrial Strategy,Intellectual Property Office,15/06/2023,Supporting UK Business,PDTM Directorate,JA Kemp,953175,"5,000.00",Not Applicable
Department for Business Energy and Industrial Strategy,Intellectual Property Office,26/06/2023,Supporting UK Business,PDTM Directorate,JA Kemp,954511,"2,500.00",Not Applicable
Department for Business Energy and Industrial Strategy,Intellectual Property Office,30/06/2023,Supporting UK Business,PDTM Directorate,JA Kemp,954541,"5,000.00",Not Applicable
Department for Business Energy and Industrial Strategy,Intellectual Property Office,06/06/2023,Information Technology,DDaT Directorate,Cyberis Limited,INV02682,"1,200.00",Not Applicable
Department for Business Energy and Industrial Strategy,Intellectual Property Office,01/06/2023,Supporting UK Business,PDTM Directorate,Hindles Ltd,230525,"2,500.00",Not Applicable
Department for Business Energy and Industrial Strategy,Intellectual Property Office,20/06/2023,Staff Costs,"Rights, Policy & Enforcement Directorate",Eliesha Training Ltd,23660,"1,074.00",Not Applicable
Department for Business Energy and Industrial Strategy,Intellectual Property Office,30/06/2023,Staff Costs,"Rights, Policy & Enforcement Directorate",Eliesha Training Ltd,23687,"2,376.00",Not Applicable
Department for Business Energy and Industrial Strategy,Intellectual Property Office,15/06/2023,Pay Costs,Projects,Empyrean Digital Ltd,EMP-781,"441,003.60",Not Applicable
Department for Business Energy and Industrial Strategy,Intellectual Property Office,15/06/2023,Pay Costs,Projects,Empyrean Digital Ltd,EMP-783,"17,768.40",Not Applicable
Department for Business Energy and Industrial Strategy,Intellectual Property Office,21/06/2023,Information Technology,Projects,Empyrean Digital Ltd,EMP-784,"111,150.02",Not Applicable
Department for Business Energy and Industrial Strategy,Intellectual Property Office,09/06/2023,Accommodation,"Rights, Policy & Enforcement Directorate",Government Property Agency,00000001/26386,"23,570.14",Not Applicable
Department for Business Energy and Industrial Strategy,Intellectual Property Office,09/06/2023,Accommodation,"Rights, Policy & Enforcement Directorate",Government Property Agency,00000001/26387,"-23,570.14",Not Applicable
Department for Business Energy and Industrial Strategy,Intellectual Property Office,20/06/2023,Supporting UK Business,Business & International Policy Directorate,Axis12 Limited,INV-5114,"2,908.80",Not Applicable
Department for Business Energy and Industrial Strategy,Intellectual Property Office,06/06/2023,Supporting UK Business,Business & International Policy Directorate,Axis12 Limited,INV-5118,"1,753.20",Not Applicable
Department for Business Energy and Industrial Strategy,Intellectual Property Office,15/06/2023,Supporting UK Business,PDTM Directorate,Adamson Jones IP Limited,25887,"5,000.00",Not Applicable
Department for Business Energy and Industrial Strategy,Intellectual Property Office,09/06/2023,Staff Costs,PDTM Directorate,White Paper Conferences,INV-20552,"2,032.80",Not Applicable
Department for Business Energy and Industrial Strategy,Intellectual Property Office,07/06/2023,Supporting UK Business,PDTM Directorate,McDaniel & Co. Ltd T/A McDaniels Law,23101,"2,500.00",Not Applicable
Department for Business Energy and Industrial Strategy,Intellectual Property Office,07/06/2023,Accommodation,"Rights, Policy & Enforcement Directorate",Perfect Circle JV Ltd,22580,633.60,Not Applicable
Department for Business Energy and Industrial Strategy,Intellectual Property Office,08/06/2023,Accommodation,"Rights, Policy & Enforcement Directorate",Perfect Circle JV Ltd,25353,"7,520.96",Not Applicable
Department for Business Energy and Industrial Strategy,Intellectual Property Office,30/06/2023,Information Technology,DDaT Directorate,Cloudflare Inc,CI-184526,"10,101.32",Not Applicable
Department for Business Energy and Industrial Strategy,Intellectual Property Office,13/06/2023,Information Technology,DDaT Directorate,Cloudflare Inc,CI-189628,"10,152.78",Not Applicable
Department for Business Energy and Industrial Strategy,Intellectual Property Office,13/06/2023,Staff Costs,PDTM Directorate,"Millennium Stadium Experience Ltd, T/A P",30451,"3,129.00",Not Applicable
Department for Business Energy and Industrial Strategy,Intellectual Property Office,07/06/2023,Office Machinery,"Rights, Policy & Enforcement Directorate",Ricoh UK Ltd,102232009,"32,357.06",Not Applicable
Department for Business Energy and Industrial Strategy,Intellectual Property Office,07/06/2023,Office Machinery,"Rights, Policy & Enforcement Directorate",Ricoh UK Ltd,102233180,"6,795.73",Not Applicable
Department for Business Energy and Industrial Strategy,Intellectual Property Office,06/06/2023,Office Machinery,"Rights, Policy & Enforcement Directorate",Ricoh UK Ltd,102264735,"8,731.18",Not Applicable
Department for Business Energy and Industrial Strategy,Intellectual Property Office,07/06/2023,Office Machinery,"Rights, Policy & Enforcement Directorate",Ricoh UK Ltd,102264736,"-6,795.73",Not Applicable
Department for Business Energy and Industrial Strategy,Intellectual Property Office,07/06/2023,Office Machinery,"Rights, Policy & Enforcement Directorate",Ricoh UK Ltd,102264737,"-32,357.06",Not Applicable
Department for Business Energy and Industrial Strategy,Intellectual Property Office,01/06/2023,Supporting UK Business,PDTM Directorate,Panoramix Limited,INV-1022,"2,500.00",Not Applicable
Department for Business Energy and Industrial Strategy,Intellectual Property Office,07/06/2023,Supporting UK Business,PDTM Directorate,Panoramix Limited,INV-1098,"2,500.00",Not Applicable
Department for Business Energy and Industrial Strategy,Intellectual Property Office,09/06/2023,Supporting UK Business,PDTM Directorate,Panoramix Limited,INV-1111,"2,500.00",Not Applicable
Department for Business Energy and Industrial Strategy,Intellectual Property Office,13/06/2023,Supporting UK Business,PDTM Directorate,Panoramix Limited,INV-1132,"2,500.00",Not Applicable
Department for Business Energy and Industrial Strategy,Intellectual Property Office,16/06/2023,Supporting UK Business,PDTM Directorate,Panoramix Limited,INV-1168,"5,000.00",Not Applicable
Department for Business Energy and Industrial Strategy,Intellectual Property Office,27/06/2023,Miscellaneous Expenses General,"Rights, Policy & Enforcement Directorate",MHR International UK Ltd,SIN182890,"1,368.00",Not Applicable
Department for Business Energy and Industrial Strategy,Intellectual Property Office,13/06/2023,Pay Costs,Projects,IRG Advisors T/A Odgers Interim,870573,"27,590.40",Not Applicable
Department for Business Energy and Industrial Strategy,Intellectual Property Office,02/06/2023,Legal & Hearings,Projects,Womble Bond Dickinson (UK) LLP,3725398,"4,200.00",Not Applicable
Department for Business Energy and Industrial Strategy,Intellectual Property Office,30/06/2023,Legal & Hearings,Projects,Womble Bond Dickinson (UK) LLP,3728844,"3,600.00",Not Applicable
Department for Business Energy and Industrial Strategy,Intellectual Property Office,14/06/2023,Information Technology,DDaT Directorate,Hewlett Packard International Bank DAC,4.00901E+11,"17,859.29",Not Applicable
Department for Business Energy and Industrial Strategy,Intellectual Property Office,14/06/2023,Information Technology,DDaT Directorate,Hewlett Packard International Bank DAC,4.00901E+11,"18,113.07",Not Applicable
Department for Business Energy and Industrial Strategy,Intellectual Property Office,19/06/2023,Information Technology,DDaT Directorate,Hewlett Packard International Bank DAC,4.00901E+11,"5,928.45",Not Applicable
Department for Business Energy and Industrial Strategy,Intellectual Property Office,14/06/2023,Information Technology,DDaT Directorate,Hewlett Packard International Bank DAC,4.00901E+11,"4,594.90",Not Applicable
Department for Business Energy and Industrial Strategy,Intellectual Property Office,01/06/2023,Pay Costs,DDaT Directorate,Allen Lane LTD,1247463,"4,380.00",Not Applicable
Department for Business Energy and Industrial Strategy,Intellectual Property Office,13/06/2023,Pay Costs,DDaT Directorate,Allen Lane LTD,1247896,"3,504.00",Not Applicable
Department for Business Energy and Industrial Strategy,Intellectual Property Office,14/06/2023,Pay Costs,DDaT Directorate,Allen Lane LTD,1248355,"4,380.00",Not Applicable
Department for Business Energy and Industrial Strategy,Intellectual Property Office,22/06/2023,Pay Costs,DDaT Directorate,Allen Lane LTD,1248830,"4,380.00",Not Applicable
Department for Business Energy and Industrial Strategy,Intellectual Property Office,28/06/2023,Pay Costs,DDaT Directorate,Allen Lane LTD,1249212,"4,380.00",Not Applicable
Department for Business Energy and Industrial Strategy,Intellectual Property Office,28/06/2023,Pay Costs,DDaT Directorate,Allen Lane LTD,1249213,"24,510.00",Not Applicable
Department for Business Energy and Industrial Strategy,Intellectual Property Office,13/06/2023,Information Technology,DDaT Directorate,Barrier Networks Ltd,INV-003358,"2,520.00",Not Applicable
Department for Business Energy and Industrial Strategy,Intellectual Property Office,22/06/2023,Information Technology,DDaT Directorate,Barrier Networks Ltd,INV-003368,"54,720.00",Not Applicable
Department for Business Energy and Industrial Strategy,Intellectual Property Office,28/06/2023,Staff Costs,PDTM Directorate,The First Word Agency Ltd,IPO/004,"6,600.00",Not Applicable
Department for Business Energy and Industrial Strategy,Intellectual Property Office,30/06/2023,Supporting UK Business,PDTM Directorate,Strachan IP Ltd,INV-0342,"2,500.00",Not Applicable
Department for Business Energy and Industrial Strategy,Intellectual Property Office,02/06/2023,Supporting UK Business,PDTM Directorate,GWIP Ltd t/a Grey Wolf IP,1795,"2,500.00",Not Applicable
Department for Business Energy and Industrial Strategy,Intellectual Property Office,30/06/2023,Misc Expenses Finance,Finance Directorate,Worldpay,258747675,"168,993.13",Not Applicable
Department for Business Energy and Industrial Strategy,Intellectual Property Office,23/06/2023,Misc Expenses Finance,Finance Directorate,Worldpay,GM1088742,923.18,Not Applicable
Department for Business Energy and Industrial Strategy,Intellectual Property Office,09/06/2023,Legal & Hearings,PDTM Directorate,Anna Edwards-Stuart,55634-MAY23,"1,950.00",Not Applicable
Department for Business Energy and Industrial Strategy,Intellectual Property Office,05/06/2023,Pay Costs,DDaT Directorate,Talent International Holdings PTY Limite,65526,"13,680.00",Not Applicable
Department for Business Energy and Industrial Strategy,Intellectual Property Office,05/06/2023,Pay Costs,DDaT Directorate,Talent International Holdings PTY Limite,65527,"12,960.00",Not Applicable
Department for Business Energy and Industrial Strategy,Intellectual Property Office,05/06/2023,Pay Costs,Projects,Talent International Holdings PTY Limite,65528,"13,014.00",Not Applicable
Department for Business Energy and Industrial Strategy,Intellectual Property Office,09/06/2023,Pay Costs,"Rights, Policy & Enforcement Directorate",Edenred,1148322,"32,695.00",Not Applicable
Department for Business Energy and Industrial Strategy,Intellectual Property Office,09/06/2023,Supporting UK Business,PDTM Directorate,Edenred,1148322,"1,930.00",Not Applicable
Department for Business Energy and Industrial Strategy,Intellectual Property Office,02/06/2023,Supporting UK Business,PDTM Directorate,Concept IP Cheltenham Ltd,INV-23168,"5,000.00",Not Applicable
Department for Business Energy and Industrial Strategy,Intellectual Property Office,06/06/2023,Legal & Hearings,PDTM Directorate,Mills and Reeve LLP,207030,"36,704.24",Not Applicable
Department for Business Energy and Industrial Strategy,Intellectual Property Office,23/06/2023,Legal & Hearings,PDTM Directorate,Mills and Reeve LLP,208816,"4,200.00",Not Applicable
Department for Business Energy and Industrial Strategy,Intellectual Property Office,16/06/2023,Accommodation,"Rights, Policy & Enforcement Directorate",TotalEnergies Gas & Power,303956603-23,"7,230.06",Not Applicable
Department for Business Energy and Industrial Strategy,Intellectual Property Office,22/06/2023,Accommodation,"Rights, Policy & Enforcement Directorate",TotalEnergies Gas & Power,303956614-23,"1,410.29",Not Applicable
Department for Business Energy and Industrial Strategy,Intellectual Property Office,23/06/2023,Supporting UK Business,"Rights, Policy & Enforcement Directorate",The Society of Chief Officers of Trading,2023/IPO1,"20,000.00",Not Applicable
Department for Business Energy and Industrial Strategy,Intellectual Property Office,15/06/2023,Office Machinery,DDaT Directorate,Annodata Limited T/A Kyocera,1315314,"5,446.90",Not Applicable
Department for Business Energy and Industrial Strategy,Intellectual Property Office,15/06/2023,Office Machinery,DDaT Directorate,Annodata Limited T/A Kyocera,1315315,"5,446.90",Not Applicable
Department for Business Energy and Industrial Strategy,Intellectual Property Office,15/06/2023,Office Machinery,DDaT Directorate,Annodata Limited T/A Kyocera,1317601,"5,446.90",Not Applicable
Department for Business Energy and Industrial Strategy,Intellectual Property Office,13/06/2023,Office Machinery,DDaT Directorate,Annodata Limited T/A Kyocera,1319956,"5,569.46",Not Applicable
Department for Business Energy and Industrial Strategy,Intellectual Property Office,13/06/2023,Office Machinery,DDaT Directorate,Annodata Limited T/A Kyocera,1319957,"5,569.46",Not Applicable
Department for Business Energy and Industrial Strategy,Intellectual Property Office,13/06/2023,Office Machinery,DDaT Directorate,Annodata Limited T/A Kyocera,1319958,"5,569.46",Not Applicable
Department for Business Energy and Industrial Strategy,Intellectual Property Office,15/06/2023,Office Machinery,DDaT Directorate,Annodata Limited T/A Kyocera,74467,"-5,446.90",Not Applicable
Department for Business Energy and Industrial Strategy,Intellectual Property Office,15/06/2023,Office Machinery,DDaT Directorate,Annodata Limited T/A Kyocera,74468,"-5,446.90",Not Applicable
Department for Business Energy and Industrial Strategy,Intellectual Property Office,15/06/2023,Office Machinery,DDaT Directorate,Annodata Limited T/A Kyocera,74470,"-5,446.90",Not Applicable
Department for Business Energy and Industrial Strategy,Intellectual Property Office,01/06/2023,Pay Costs,Projects,JobSpec Limited,JS-759112,"1,567.20",Not Applicable
Department for Business Energy and Industrial Strategy,Intellectual Property Office,02/06/2023,Pay Costs,Projects,JobSpec Limited,JS-759115,"3,918.00",Not Applicable
Department for Business Energy and Industrial Strategy,Intellectual Property Office,06/06/2023,Pay Costs,Projects,JobSpec Limited,JS-759116,"3,134.40",Not Applicable
Department for Business Energy and Industrial Strategy,Intellectual Property Office,13/06/2023,Pay Costs,Projects,JobSpec Limited,JS-759117,"3,918.00",Not Applicable
Department for Business Energy and Industrial Strategy,Intellectual Property Office,21/06/2023,Pay Costs,Projects,JobSpec Limited,JS-759118,"3,918.00",Not Applicable
Department for Business Energy and Industrial Strategy,Intellectual Property Office,29/06/2023,Pay Costs,Projects,JobSpec Limited,JS-759119,"3,918.00",Not Applicable
Department for Business Energy and Industrial Strategy,Intellectual Property Office,07/06/2023,Office Machinery,"Rights, Policy & Enforcement Directorate",Peac Uk Ltd,006/24/0043571,"1,380.00",Not Applicable
Department for Business Energy and Industrial Strategy,Intellectual Property Office,05/06/2023,Pay Costs,DDaT Directorate,Interquest Group UK Ltd,212667,"17,449.92",Not Applicable
Department for Business Energy and Industrial Strategy,Intellectual Property Office,02/06/2023,Supporting UK Business,PDTM Directorate,Exalt IP Limited,260523,"2,500.00",Not Applicable
Department for Business Energy and Industrial Strategy,Intellectual Property Office,22/06/2023,Supporting UK Business,PDTM Directorate,Mishcon de Reya LLP,140000245,"3,840.00",Not Applicable
Department for Business Energy and Industrial Strategy,Intellectual Property Office,02/06/2023,Staff Costs,DDaT Directorate,Understanding Recruitment,3355,"8,035.20",Not Applicable
Department for Business Energy and Industrial Strategy,Intellectual Property Office,01/06/2023,Accommodation,"Rights, Policy & Enforcement Directorate",ASL Lockers Ltd,AS07239,"11,400.00",Not Applicable
Department for Business Energy and Industrial Strategy,Intellectual Property Office,06/06/2023,Supporting UK Business,Business & International Policy Directorate,Hillside School,20230523-2,"1,000.00",Not Applicable
Department for Business Energy and Industrial Strategy,Intellectual Property Office,27/06/2023,Miscellaneous Expenses General,Strategy Directorate,thoughtengine Limited,INV-0027,"4,398.40",Not Applicable
Department for Business Energy and Industrial Strategy,Intellectual Property Office,06/06/2023,Supporting UK Business,"Rights, Policy & Enforcement Directorate",Universal Live Ltd,41974,"3,029.70",Not Applicable
Department for Business Energy and Industrial Strategy,Intellectual Property Office,01/06/2023,Supporting UK Business,"Rights, Policy & Enforcement Directorate",Manchester Nominees 1 and 2 Limited,70005/0000480,"12,000.00",Not Applicable
Department for Business Energy and Industrial Strategy,Intellectual Property Office,02/06/2023,Supporting UK Business,PDTM Directorate,Simplify IP Ltd,1019,"2,500.00",Not Applicable
Department for Business Energy and Industrial Strategy,Intellectual Property Office,19/06/2023,Supporting UK Business,PDTM Directorate,Penningtons Manches Cooper LLP,5366508,"3,499.20",Not Applicable
Department for Business Energy and Industrial Strategy,Intellectual Property Office,29/06/2023,Other,"Rights, Policy & Enforcement Directorate",Countisbury Fruit,H57720230701fqygguqbh,225.00,Not Applicable
Department for Business Energy and Industrial Strategy,Intellectual Property Office,29/06/2023,Other,"Rights, Policy & Enforcement Directorate",Sumup *edyta Szabaciu,H57720230701iituptfjj,160.00,Not Applicable
Department for Business Energy and Industrial Strategy,Intellectual Property Office,28/06/2023,Office Stationery,"Rights, Policy & Enforcement Directorate",Hfx Ltd,H57720230630cotvmpehr,60.00,Not Applicable
Department for Business Energy and Industrial Strategy,Intellectual Property Office,28/06/2023,Office Stationery,"Rights, Policy & Enforcement Directorate",Amznmktplace,H57720230630jbospboml,51.73,Not Applicable
Department for Business Energy and Industrial Strategy,Intellectual Property Office,28/06/2023,Office Stationery,"Rights, Policy & Enforcement Directorate",Amznmktplace,H57720230630knrfkrkwj,34.50,Not Applicable
Department for Business Energy and Industrial Strategy,Intellectual Property Office,29/06/2023,Office Stationery,"Rights, Policy & Enforcement Directorate",Amznmktplace,H57720230630lvxqvuzbv,24.35,Not Applicable
Department for Business Energy and Industrial Strategy,Intellectual Property Office,28/06/2023,Office Stationery,"Rights, Policy & Enforcement Directorate",Amznmktplace,H57720230630olspiowvo,27.35,Not Applicable
Department for Business Energy and Industrial Strategy,Intellectual Property Office,28/06/2023,Career Development Services,"Rights, Policy & Enforcement Directorate",Asda Superstore 4928,H57720230630qnlbfutau,14.90,Not Applicable
Department for Business Energy and Industrial Strategy,Intellectual Property Office,28/06/2023,Office Stationery,"Rights, Policy & Enforcement Directorate",Amznmktplace,H57720230630qriuqqglm,24.36,Not Applicable
Department for Business Energy and Industrial Strategy,Intellectual Property Office,28/06/2023,Office Stationery,"Rights, Policy & Enforcement Directorate",Amznmktplace,H57720230630vwmvrqhpm,24.36,Not Applicable
Department for Business Energy and Industrial Strategy,Intellectual Property Office,28/06/2023,Office Stationery,"Rights, Policy & Enforcement Directorate",Amznmktplace,H57720230630wvpqkelpi,22.10,Not Applicable
Department for Business Energy and Industrial Strategy,Intellectual Property Office,29/06/2023,Office Stationery,"Rights, Policy & Enforcement Directorate",Amznmktplace,H57720230630yqhsunrwd,41.03,Not Applicable
Department for Business Energy and Industrial Strategy,Intellectual Property Office,26/06/2023,Overseas Patent Specifications,PDTM Directorate,Wiley,H57720230629axrbjsdnx,47.90,Not Applicable
Department for Business Energy and Industrial Strategy,Intellectual Property Office,26/06/2023,Overseas Patent Specifications,PDTM Directorate,Wiley,H57720230629hykfvycsx,39.77,Not Applicable
Department for Business Energy and Industrial Strategy,Intellectual Property Office,27/06/2023,Career Development Services,DDaT Directorate,Eb *hornbill Insights,H57720230629knfctipgo,449.00,Not Applicable
Department for Business Energy and Industrial Strategy,Intellectual Property Office,27/06/2023,Career Development Services,DDaT Directorate,Eb *hornbill Insights,H57720230629mcmwqnsev,898.00,Not Applicable
Department for Business Energy and Industrial Strategy,Intellectual Property Office,27/06/2023,Career Development Services,DDaT Directorate,Eb *hornbill Insights,H57720230629ycfdckywi,449.00,Not Applicable
Department for Business Energy and Industrial Strategy,Intellectual Property Office,26/06/2023,Other,"Rights, Policy & Enforcement Directorate",Robert Price (Bm) Ltd,H57720230628cyzmuhjhk,108.00,Not Applicable
Department for Business Energy and Industrial Strategy,Intellectual Property Office,26/06/2023,Career Development Services,"Rights, Policy & Enforcement Directorate",Paypal,H57720230628jqukbbddo,2699.10,Not Applicable
Department for Business Energy and Industrial Strategy,Intellectual Property Office,26/06/2023,Career Development Services,Strategy Directorate,Amazon.Co.Uk,H57720230628ntiuzagdb,90.49,Not Applicable
Department for Business Energy and Industrial Strategy,Intellectual Property Office,26/06/2023,Office Stationery,"Rights, Policy & Enforcement Directorate",Asda Superstore 4928,H57720230628qhbdiusgn,46.65,Not Applicable
Department for Business Energy and Industrial Strategy,Intellectual Property Office,11/06/2023,Ad-hoc IT Services,DDaT Directorate,Ipo,H57720230627cfrqaiwco,-30.00,Not Applicable
Department for Business Energy and Industrial Strategy,Intellectual Property Office,25/06/2023,Career Development Services,"Rights, Policy & Enforcement Directorate",Asda Superstore 4928,H57720230627eeqsvtqev,9.25,Not Applicable
Department for Business Energy and Industrial Strategy,Intellectual Property Office,10/06/2023,Legal Consultancy,DDaT Directorate,Ipo,H57720230627hexdkueuy,-30.00,Not Applicable
Department for Business Energy and Industrial Strategy,Intellectual Property Office,14/05/2023,Legal Consultancy,DDaT Directorate,Ipo,H57720230627hqexnsliu,-30.00,Not Applicable
Department for Business Energy and Industrial Strategy,Intellectual Property Office,13/05/2023,Legal Consultancy,DDaT Directorate,Ipo,H57720230627kisnnfyyt,-30.00,Not Applicable
Department for Business Energy and Industrial Strategy,Intellectual Property Office,13/05/2023,Legal Consultancy,DDaT Directorate,Ipo,H57720230627pqmnbxdiv,-5.00,Not Applicable
Department for Business Energy and Industrial Strategy,Intellectual Property Office,26/06/2023,Other,"Rights, Policy & Enforcement Directorate",Amznmktplace,H57720230627stldqrwec,26.99,Not Applicable
Department for Business Energy and Industrial Strategy,Intellectual Property Office,23/06/2023,Office Stationery,"Rights, Policy & Enforcement Directorate",Amznmktplace,H57720230627ywxzfpqmb,48.35,Not Applicable
Department for Business Energy and Industrial Strategy,Intellectual Property Office,23/06/2023,Career Development Services,"Rights, Policy & Enforcement Directorate",Konferencja Uj,H57720230627zogheilzc,207.74,Not Applicable
Department for Business Energy and Industrial Strategy,Intellectual Property Office,14/06/2023,Minor Works-Goods,"Rights, Policy & Enforcement Directorate",Newey & Eyre,H57720230624dgxyicniy,842.04,Not Applicable
Department for Business Energy and Industrial Strategy,Intellectual Property Office,22/06/2023,Other,"Rights, Policy & Enforcement Directorate",Amznmktplace,H57720230624hunimurcv,22.99,Not Applicable
Department for Business Energy and Industrial Strategy,Intellectual Property Office,23/06/2023,Other,"Rights, Policy & Enforcement Directorate",Amznmktplace,H57720230624imjotdiei,18.76,Not Applicable
Department for Business Energy and Industrial Strategy,Intellectual Property Office,22/06/2023,Career Development Services,"Rights, Policy & Enforcement Directorate",Amznmktplace,H57720230624meiltdvaf,59.69,Not Applicable
Department for Business Energy and Industrial Strategy,Intellectual Property Office,22/06/2023,Career Development Services,"Rights, Policy & Enforcement Directorate",Prolific North,H57720230624ngcecfvlt,150.00,Not Applicable
Department for Business Energy and Industrial Strategy,Intellectual Property Office,22/06/2023,Other,"Rights, Policy & Enforcement Directorate",Www.Argos.Co.Uk,H57720230624npswmsxgj,30.00,Not Applicable
Department for Business Energy and Industrial Strategy,Intellectual Property Office,23/06/2023,Other,"Rights, Policy & Enforcement Directorate",Amznmktplace,H57720230624ompeyxgbo,37.52,Not Applicable
Department for Business Energy and Industrial Strategy,Intellectual Property Office,21/06/2023,Office Stationery,"Rights, Policy & Enforcement Directorate",Tvlicensing.Co.Uk,H57720230624qiyfekohx,159.00,Not Applicable
Department for Business Energy and Industrial Strategy,Intellectual Property Office,22/06/2023,Other,"Rights, Policy & Enforcement Directorate",Amznmktplace,H57720230624qqtshqprp,21.95,Not Applicable
Department for Business Energy and Industrial Strategy,Intellectual Property Office,22/06/2023,Other,"Rights, Policy & Enforcement Directorate",Natural Res Wales,H57720230624smkieqdnx,36.00,Not Applicable
Department for Business Energy and Industrial Strategy,Intellectual Property Office,22/06/2023,Entertainment,"Rights, Policy & Enforcement Directorate",Artivive.Com,H57720230624xgiwshtjg,6.57,Not Applicable
Department for Business Energy and Industrial Strategy,Intellectual Property Office,21/06/2023,Office Stationery,"Rights, Policy & Enforcement Directorate",Healthy Workstations Ltd,H57720230623bvqpnjhlp,57.89,Not Applicable
Department for Business Energy and Industrial Strategy,Intellectual Property Office,21/06/2023,Minor Works-Goods,"Rights, Policy & Enforcement Directorate",Amznmktplace,H57720230623fndzqumuo,147.01,Not Applicable
Department for Business Energy and Industrial Strategy,Intellectual Property Office,21/06/2023,Other,"Rights, Policy & Enforcement Directorate",Countisbury Fruit,H57720230623ghxovboqe,172.00,Not Applicable
Department for Business Energy and Industrial Strategy,Intellectual Property Office,21/06/2023,Office Stationery,"Rights, Policy & Enforcement Directorate",Amznmktplace,H57720230623jocsxwibb,13.99,Not Applicable
Department for Business Energy and Industrial Strategy,Intellectual Property Office,21/06/2023,Minor Works-Goods,"Rights, Policy & Enforcement Directorate",Www.Screwfix.Com,H57720230623kroxnxenb,8.87,Not Applicable
Department for Business Energy and Industrial Strategy,Intellectual Property Office,21/06/2023,Career Development Services,DDaT Directorate,Testing Exam Vue*comptia,H57720230623lbcendcvs,279.60,Not Applicable
Department for Business Energy and Industrial Strategy,Intellectual Property Office,21/06/2023,Office Stationery,"Rights, Policy & Enforcement Directorate",Amznmktplace,H57720230623ngqaepswz,9.98,Not Applicable
Department for Business Energy and Industrial Strategy,Intellectual Property Office,22/06/2023,Office Stationery,"Rights, Policy & Enforcement Directorate",Amznmktplace,H57720230623okimwowci,16.20,Not Applicable
Department for Business Energy and Industrial Strategy,Intellectual Property Office,21/06/2023,Career Development Services,"Rights, Policy & Enforcement Directorate",Paypal,H57720230623oqpznlaoa,14.15,Not Applicable
Department for Business Energy and Industrial Strategy,Intellectual Property Office,21/06/2023,Minor Works-Goods,"Rights, Policy & Enforcement Directorate",B&q Ltd,H57720230623ritowcefw,60.00,Not Applicable
Department for Business Energy and Industrial Strategy,Intellectual Property Office,21/06/2023,Minor Works-Goods,"Rights, Policy & Enforcement Directorate",B&q Marketplace,H57720230623ukhamyesq,156.99,Not Applicable
Department for Business Energy and Industrial Strategy,Intellectual Property Office,21/06/2023,Minor Works-Goods,"Rights, Policy & Enforcement Directorate",Www.Screwfix.Com,H57720230623ykmlufasw,51.81,Not Applicable
Department for Business Energy and Industrial Strategy,Intellectual Property Office,20/06/2023,Minor Works-Goods,"Rights, Policy & Enforcement Directorate",Www.Screwfix.Com,H57720230622bcxsuowdk,116.23,Not Applicable
Department for Business Energy and Industrial Strategy,Intellectual Property Office,20/06/2023,Career Development Services,Finance Directorate,Association Of Chartered,H57720230622bgahyjjop,263.00,Not Applicable
Department for Business Energy and Industrial Strategy,Intellectual Property Office,20/06/2023,Career Development Services,Finance Directorate,Kaplan Financial Ltd,H57720230622htlgpvfpo,131.00,Not Applicable
Department for Business Energy and Industrial Strategy,Intellectual Property Office,20/06/2023,Office Stationery,"Rights, Policy & Enforcement Directorate",Office For National St,H57720230622ivtgbbnhh,1.05,Not Applicable
Department for Business Energy and Industrial Strategy,Intellectual Property Office,20/06/2023,Career Development Services,"Rights, Policy & Enforcement Directorate",Tesco Stores 2931,H57720230622onmcxoosh,13.65,Not Applicable
Department for Business Energy and Industrial Strategy,Intellectual Property Office,19/06/2023,Office Stationery,"Rights, Policy & Enforcement Directorate",Www.Plexdisplay.Com,H57720230621cqxlainho,354.14,Not Applicable
Department for Business Energy and Industrial Strategy,Intellectual Property Office,19/06/2023,Minor Works-Goods,"Rights, Policy & Enforcement Directorate",The Absolute Sports Grou,H57720230621ewpjgmyrl,996.00,Not Applicable
Department for Business Energy and Industrial Strategy,Intellectual Property Office,16/06/2023,Office Stationery,"Rights, Policy & Enforcement Directorate",Amznmktplace,H57720230620abyiogtas,219.00,Not Applicable
Department for Business Energy and Industrial Strategy,Intellectual Property Office,17/06/2023,Entertainment,"Rights, Policy & Enforcement Directorate",Epidemic Sound,H57720230620mprxjfnab,46.80,Not Applicable
Department for Business Energy and Industrial Strategy,Intellectual Property Office,16/06/2023,Career Development Services,"Rights, Policy & Enforcement Directorate",Paypal,H57720230620qktwqedno,16.55,Not Applicable
Department for Business Energy and Industrial Strategy,Intellectual Property Office,15/06/2023,Office Stationery,"Rights, Policy & Enforcement Directorate",Amznmktplace,H57720230617bqjnwiutp,29.98,Not Applicable
Department for Business Energy and Industrial Strategy,Intellectual Property Office,15/06/2023,Career Development Services,"Rights, Policy & Enforcement Directorate",Amznmktplace,H57720230617eocnslbnb,14.99,Not Applicable
Department for Business Energy and Industrial Strategy,Intellectual Property Office,15/06/2023,Books,Finance Directorate,Bsi Standards Ltd,H57720230617fljhawczx,154.96,Not Applicable
Department for Business Energy and Industrial Strategy,Intellectual Property Office,15/06/2023,Career Development Services,"Rights, Policy & Enforcement Directorate",Wm Morrisons Store,H57720230617hcilhzvnl,27.43,Not Applicable
Department for Business Energy and Industrial Strategy,Intellectual Property Office,14/06/2023,Office Stationery,"Rights, Policy & Enforcement Directorate",Rs Components,H57720230617jmpsewkfd,25.42,Not Applicable
Department for Business Energy and Industrial Strategy,Intellectual Property Office,15/06/2023,Office Stationery,"Rights, Policy & Enforcement Directorate",Amznmktplace,H57720230617npyzruxsf,19.99,Not Applicable
Department for Business Energy and Industrial Strategy,Intellectual Property Office,15/06/2023,Office Stationery,"Rights, Policy & Enforcement Directorate",Xl Displays Ltd,H57720230617vktpfqaux,94.80,Not Applicable
Department for Business Energy and Industrial Strategy,Intellectual Property Office,15/06/2023,Office Stationery,"Rights, Policy & Enforcement Directorate",Www.Screwfix.Com,H57720230617xnnlsegku,51.94,Not Applicable
Department for Business Energy and Industrial Strategy,Intellectual Property Office,15/06/2023,Office Stationery,"Rights, Policy & Enforcement Directorate",Imo Car Wash Newport,H57720230617zdvxgyxfd,13.00,Not Applicable
Department for Business Energy and Industrial Strategy,Intellectual Property Office,15/06/2023,Office Stationery,"Rights, Policy & Enforcement Directorate",Amznmktplace,H57720230617zwumylxik,31.96,Not Applicable
Department for Business Energy and Industrial Strategy,Intellectual Property Office,10/06/2023,Legal Consultancy,DDaT Directorate,Ipo,H57720230616cdbovjzia,-5.00,Not Applicable
Department for Business Energy and Industrial Strategy,Intellectual Property Office,10/06/2023,Legal Consultancy,DDaT Directorate,Ipo,H57720230616czpbnrbcs,-50.00,Not Applicable
Department for Business Energy and Industrial Strategy,Intellectual Property Office,14/06/2023,Office Stationery,"Rights, Policy & Enforcement Directorate",Amazon.Co.Uk,H57720230616dzfodmymm,26.98,Not Applicable
Department for Business Energy and Industrial Strategy,Intellectual Property Office,14/06/2023,Minor Works-Goods,"Rights, Policy & Enforcement Directorate",Www.Screwfix.Com,H57720230616jwnjcfcun,57.99,Not Applicable
Department for Business Energy and Industrial Strategy,Intellectual Property Office,11/06/2023,Legal Consultancy,DDaT Directorate,Ipo,H57720230616nzffflnfu,-5.00,Not Applicable
Department for Business Energy and Industrial Strategy,Intellectual Property Office,14/06/2023,Career Development Services,"Rights, Policy & Enforcement Directorate",Amznmktplace,H57720230616otmikftlp,82.58,Not Applicable
Department for Business Energy and Industrial Strategy,Intellectual Property Office,10/06/2023,Legal Consultancy,DDaT Directorate,Ipo,H57720230616rdxtszqun,-170.00,Not Applicable
Department for Business Energy and Industrial Strategy,Intellectual Property Office,11/06/2023,Legal Consultancy,DDaT Directorate,Ipo,H57720230616uxjxwmzjy,-50.00,Not Applicable
Department for Business Energy and Industrial Strategy,Intellectual Property Office,11/06/2023,Legal Consultancy,DDaT Directorate,Ipo,H57720230616zbgmrmmsm,-170.00,Not Applicable
Department for Business Energy and Industrial Strategy,Intellectual Property Office,13/06/2023,Office Stationery,"Rights, Policy & Enforcement Directorate",Www.Screwfix.Com,H57720230615agiqdbzca,92.93,Not Applicable
Department for Business Energy and Industrial Strategy,Intellectual Property Office,13/06/2023,Office Stationery,"Rights, Policy & Enforcement Directorate",Office For National St,H57720230615djhepkgxi,1.05,Not Applicable
Department for Business Energy and Industrial Strategy,Intellectual Property Office,13/06/2023,Career Development Services,"Rights, Policy & Enforcement Directorate",Amznmktplace,H57720230615ghnewntri,15.98,Not Applicable
Department for Business Energy and Industrial Strategy,Intellectual Property Office,13/06/2023,Office Stationery,"Rights, Policy & Enforcement Directorate",Www.Screwfix.Com,H57720230615llcqogfvb,62.38,Not Applicable
Department for Business Energy and Industrial Strategy,Intellectual Property Office,13/06/2023,Office Stationery,"Rights, Policy & Enforcement Directorate",Ppe Workwear Direct,H57720230615lpqevkwvo,202.64,Not Applicable
Department for Business Energy and Industrial Strategy,Intellectual Property Office,13/06/2023,Books,"Rights, Policy & Enforcement Directorate",Hmcts Moj,H57720230615qkjkrefoc,11.00,Not Applicable
Department for Business Energy and Industrial Strategy,Intellectual Property Office,13/06/2023,Office Stationery,"Rights, Policy & Enforcement Directorate",Www.Screwfix.Com,H57720230615qvjrggkxu,76.61,Not Applicable
Department for Business Energy and Industrial Strategy,Intellectual Property Office,13/06/2023,Career Development Services,"Rights, Policy & Enforcement Directorate",The Myersbriggs Company L,H57720230615yusiyhomc,59.40,Not Applicable
Department for Business Energy and Industrial Strategy,Intellectual Property Office,12/06/2023,Career Development Services,"Rights, Policy & Enforcement Directorate",The Myersbriggs Company L,H57720230614gkjsxepqt,59.40,Not Applicable
Department for Business Energy and Industrial Strategy,Intellectual Property Office,11/06/2023,Legal Consultancy,DDaT Directorate,Ipo,H57720230614ijiywmuxt,50.00,Not Applicable
Department for Business Energy and Industrial Strategy,Intellectual Property Office,12/06/2023,Office Stationery,"Rights, Policy & Enforcement Directorate",Www.Screwfix.Com,H57720230614ilsrcilqc,54.99,Not Applicable
Department for Business Energy and Industrial Strategy,Intellectual Property Office,11/06/2023,Legal Consultancy,DDaT Directorate,Ipo,H57720230614mnfropycp,170.00,Not Applicable
Department for Business Energy and Industrial Strategy,Intellectual Property Office,12/06/2023,Education Campaign,Strategy Directorate,Financial Times,H57720230614qxldogqst,525.00,Not Applicable
Department for Business Energy and Industrial Strategy,Intellectual Property Office,12/06/2023,Other,"Rights, Policy & Enforcement Directorate",Cardiff Cycle Workshop,H57720230614tpcformei,105.00,Not Applicable
Department for Business Energy and Industrial Strategy,Intellectual Property Office,12/06/2023,Minor Works-Goods,"Rights, Policy & Enforcement Directorate",Www.Screwfix.Com,H57720230614wsjwycwih,71.99,Not Applicable
Department for Business Energy and Industrial Strategy,Intellectual Property Office,12/06/2023,Minor Works-Goods,"Rights, Policy & Enforcement Directorate",Toolstation Uk,H57720230614wukqdsbws,124.98,Not Applicable
Department for Business Energy and Industrial Strategy,Intellectual Property Office,11/06/2023,Legal Consultancy,DDaT Directorate,Ipo,H57720230614xmypbfzjc,30.00,Not Applicable
Department for Business Energy and Industrial Strategy,Intellectual Property Office,11/06/2023,Legal Consultancy,DDaT Directorate,Ipo,H57720230614ycxljjbgu,5.00,Not Applicable
Department for Business Energy and Industrial Strategy,Intellectual Property Office,10/06/2023,Legal Consultancy,DDaT Directorate,Ipo,H57720230613fsmtmifuu,50.00,Not Applicable
Department for Business Energy and Industrial Strategy,Intellectual Property Office,10/06/2023,Legal Consultancy,DDaT Directorate,Ipo,H57720230613lbteewrjq,30.00,Not Applicable
Department for Business Energy and Industrial Strategy,Intellectual Property Office,11/06/2023,Career Development Services,"Rights, Policy & Enforcement Directorate",The Myersbriggs Company L,H57720230613mfqxygoxy,237.60,Not Applicable
Department for Business Energy and Industrial Strategy,Intellectual Property Office,08/06/2023,Overseas Patent Specifications,PDTM Directorate,Wiley,H57720230613ohgkmyqjh,40.71,Not Applicable
Department for Business Energy and Industrial Strategy,Intellectual Property Office,08/06/2023,Overseas Patent Specifications,PDTM Directorate,Wiley,H57720230613tvjxcrvwn,40.71,Not Applicable
Department for Business Energy and Industrial Strategy,Intellectual Property Office,10/06/2023,Legal Consultancy,DDaT Directorate,Ipo,H57720230613ukukehzqb,5.00,Not Applicable
Department for Business Energy and Industrial Strategy,Intellectual Property Office,09/06/2023,Career Development Services,"Rights, Policy & Enforcement Directorate",Axelos,H57720230613vgqctdpwa,118.80,Not Applicable
Department for Business Energy and Industrial Strategy,Intellectual Property Office,10/06/2023,Legal Consultancy,DDaT Directorate,Ipo,H57720230613zehaigcus,170.00,Not Applicable
Department for Business Energy and Industrial Strategy,Intellectual Property Office,08/06/2023,Career Development Services,DDaT Directorate,Testing Exam Vue*microsof,H57720230611fzlfjaypj,41.40,Not Applicable
Department for Business Energy and Industrial Strategy,Intellectual Property Office,08/06/2023,Entertainment,Strategy Directorate,The Priory Caerleon,H57720230611kadrpbwkr,618.20,Not Applicable
Department for Business Energy and Industrial Strategy,Intellectual Property Office,08/06/2023,Minor Works-Goods,"Rights, Policy & Enforcement Directorate",Www.Nisbets.Com,H57720230611kfiypspdp,309.43,Not Applicable
Department for Business Energy and Industrial Strategy,Intellectual Property Office,07/06/2023,Office Stationery,"Rights, Policy & Enforcement Directorate",Workplacedepot.Co.Uk,H57720230609ciembqhvz,444.46,Not Applicable
Department for Business Energy and Industrial Strategy,Intellectual Property Office,07/06/2023,Education Campaign,Strategy Directorate,Asda Superstore 4928,H57720230609finbzvxjk,8.25,Not Applicable
Department for Business Energy and Industrial Strategy,Intellectual Property Office,07/06/2023,Perpetual Licences,DDaT Directorate,Heroku* May-82040778,H57720230609wjrclnyni,4.16,Not Applicable
Department for Business Energy and Industrial Strategy,Intellectual Property Office,07/06/2023,Perpetual Licences,DDaT Directorate,Heroku* May-82122255,H57720230609xvptllcow,5.82,Not Applicable
Department for Business Energy and Industrial Strategy,Intellectual Property Office,07/06/2023,Entertainment,Strategy Directorate,Tesco-Stores 6459,H57720230609ynwyunero,11.20,Not Applicable
Department for Business Energy and Industrial Strategy,Intellectual Property Office,06/06/2023,Office Stationery,"Rights, Policy & Enforcement Directorate",Halfords E.Comm,H57720230608bbuqgvywt,66.56,Not Applicable
Department for Business Energy and Industrial Strategy,Intellectual Property Office,07/06/2023,Books,DDaT Directorate,Amazon.Co.Uk,H57720230608fzdixbmge,36.98,Not Applicable
Department for Business Energy and Industrial Strategy,Intellectual Property Office,05/06/2023,Overseas Patent Specifications,PDTM Directorate,Wiley,H57720230608ihmzdyobs,48.83,Not Applicable
Department for Business Energy and Industrial Strategy,Intellectual Property Office,06/06/2023,Career Development Services,DDaT Directorate,Testing Exam Vue*microsof,H57720230608jbucrtxyf,41.40,Not Applicable
Department for Business Energy and Industrial Strategy,Intellectual Property Office,05/06/2023,Minor Works-Goods,"Rights, Policy & Enforcement Directorate",Newey & Eyre,H57720230608jenoipuxy,193.56,Not Applicable
Department for Business Energy and Industrial Strategy,Intellectual Property Office,05/06/2023,Career Development Services,"Rights, Policy & Enforcement Directorate",Eb *narcissism,H57720230607ansnjyyao,65.00,Not Applicable
Department for Business Energy and Industrial Strategy,Intellectual Property Office,05/06/2023,Office Stationery,"Rights, Policy & Enforcement Directorate",Amznmktplace,H57720230607heipdealo,204.97,Not Applicable
Department for Business Energy and Industrial Strategy,Intellectual Property Office,05/06/2023,Office Stationery,"Rights, Policy & Enforcement Directorate",Healthy Workstations Ltd,H57720230607qioxfehmh,124.74,Not Applicable
Department for Business Energy and Industrial Strategy,Intellectual Property Office,04/06/2023,Minor Works-Goods,"Rights, Policy & Enforcement Directorate",Amazon.Co.Uk,H57720230606bhxmojhrw,226.73,Not Applicable
Department for Business Energy and Industrial Strategy,Intellectual Property Office,03/06/2023,Books Newspaper Pub(central),Strategy Directorate,Financial Times,H57720230606gxgisatpw,489.00,Not Applicable
Department for Business Energy and Industrial Strategy,Intellectual Property Office,04/06/2023,Minor Works-Goods,"Rights, Policy & Enforcement Directorate",Amazon.Co.Uk,H57720230606letxphwrk,97.17,Not Applicable
Department for Business Energy and Industrial Strategy,Intellectual Property Office,01/06/2023,Minor Works-Goods,"Rights, Policy & Enforcement Directorate",Www.Screwfix.Com,H57720230603axhtxucuy,14.38,Not Applicable
Department for Business Energy and Industrial Strategy,Intellectual Property Office,01/06/2023,Office Stationery,"Rights, Policy & Enforcement Directorate",Sq *colour Data UK Ltd,H57720230603kiuferetv,195.54,Not Applicable
Department for Business Energy and Industrial Strategy,Intellectual Property Office,31/05/2023,Overseas Patent Specifications,PDTM Directorate,Spie Org,H57720230603kowtnruyn,20.92,Not Applicable
Department for Business Energy and Industrial Strategy,Intellectual Property Office,01/06/2023,Minor Works-Goods,"Rights, Policy & Enforcement Directorate",Www.Screwfix.Com,H57720230603krduwlfgj,161.59,Not Applicable
Department for Business Energy and Industrial Strategy,Intellectual Property Office,02/06/2023,Career Development Services,"Rights, Policy & Enforcement Directorate",Amznmktplace,H57720230603risugmmhi,23.48,Not Applicable
Department for Business Energy and Industrial Strategy,Intellectual Property Office,01/06/2023,Career Development Services,DDaT Directorate,Udemy,H57720230603yhdgmrqij,17.99,Not Applicable
Department for Business Energy and Industrial Strategy,Intellectual Property Office,31/05/2023,Career Development Services,Finance Directorate,Www.Cips.Org,H57720230602iwixgmufi,260.94,Not Applicable
Department for Business Energy and Industrial Strategy,Intellectual Property Office,31/05/2023,Other,"Rights, Policy & Enforcement Directorate",Specsaversevougb-,H57720230602kresdkikx,680.00,Not Applicable
Department for Business Energy and Industrial Strategy,Intellectual Property Office,31/05/2023,Career Development Services,PDTM Directorate,Amazon.Co.Uk,H57720230602vuwugnnlv,1447.99,Not Applicable
